Workbook

Sheet 11eV
F2: M/Z | G2: 28 | H2: 30 | I2: 32 | J2: 42 | K2: 43 | L2: 44 | M2: 45 | N2: 55 | O2: 56 | P2: 57 | Q2: 58 | R2: 59 | S2: 60 | T2: 61 | U2: 69 | V2: 70 | W2: 71 | X2: 72 | Y2: 73 | Z2: 74 | AA2: 83 | AB2: 84 | AC2: 85 | AD2: 86 | AE2: 87 | AF2: 97 | AG2: 98 | AH2: 99 | AI2: 100 | AJ2: 101 | AK2: 110 | AL2: 111 | AM2: 112 | AN2: 113 | AO2: 114 | AP2: 115 | AQ2: 116 | AR2: 117 | AS2: 119 | AT2: 126 | AU2: 128 | AV2: 129 | AW2: 130 | AX2: 144 | AY2: 146
A3: Wavelength(Å) | B3: Photon Indensity(nA) | C3: Energy(eV) | D3: Corrected PI(nA) | F3: Formula
F4: Range | G4: 9455 | H4: 9766 | I4: 10069 | J4: 11446 | K4: 11571 | L4: 11697 | M4: 11825 | N4: 13009 | O4: 13122 | P4: 13234 | Q4: 13344 | R4: 13457 | S4: 13557 | T4: 13670 | U4: 14501 | V4: 14599 | W4: 14700 | X4: 14798 | Y4: 14896 | Z4: 14997 | AA4: 15848 | AB4: 15937 | AC4: 16026 | AD4: 16118 | AE4: 16209 | AF4: 17084 | AG4: 17165 | AH4: 17247 | AI4: 17332 | AJ4: 17416 | AK4: 18149 | AL4: 18225 | AM4: 18306 | AN4: 18381 | AO4: 18465 | AP4: 18544 | AQ4: 18617 | AR4: 18697 | AS4: 18854 | AT4: 19376 | AU4: 19530 | AV4: 19605 | AW4: 19679 | AX4: 20674 | AY4: 20812
G5: 9475 | H5: 9779 | I5: 10087 | J5: 11462 | K5: 11590 | L5: 11716 | M5: 11840 | N5: 13023 | O5: 13146 | P5: 13254 | Q5: 13361 | R5: 13469 | S5: 13578 | T5: 13680 | U5: 14516 | V5: 14623 | W5: 14723 | X5: 14818 | Y5: 14919 | Z5: 15008 | AA5: 15861 | AB5: 15954 | AC5: 16050 | AD5: 16136 | AE5: 16225 | AF5: 17097 | AG5: 17188 | AH5: 17268 | AI5: 17359 | AJ5: 17440 | AK5: 18174 | AL5: 18249 | AM5: 18333 | AN5: 18411 | AO5: 18492 | AP5: 18567 | AQ5: 18637 | AR5: 18720 | AS5: 18877 | AT5: 19407 | AU5: 19559 | AV5: 19628 | AW5: 19700 | AX5: 20703 | AY5: 20839
F6: Background Deduction
A7: 1127 | B7: 1.21 | C7: 11.00125887 | D7: 11.22517055 | G7: 0.5006605445 | H7: 0 | I7: 0 | J7: 4.721531825 | K7: 2.066783742 | L7: 0.4454275307 | M7: 0 | N7: 0.07126840491 | O7: 68.15041219 | P7: 9.88136434 | Q7: 3.381685813 | R7: 0 | S7: 0.4917519939 | T7: 0 | U7: 1.004884509 | V7: 166.7680675 | W7: 98.38603297 | X7: 4.411514264 | Y7: 0 | Z7: 0.2244954755 | AA7: 0.3741591258 | AB7: 2.551408896 | AC7: 6.68141296 | AD7: 0 | AE7: 0 | AF7: 0 | AG7: 8.872916411 | AH7: 1.999078758 | AI7: 1323.550491 | AJ7: 101.735648 | AK7: 0 | AL7: 0 | AM7: 0.6627961656 | AN7: 0.5184776457 | AO7: 0 | AP7: 0 | AQ7: 0.5737106595 | AR7: 0.5238227761 | AS7: 0 | AT7: 0 | AU7: 0.6235985429 | AV7: 0 | AW7: 0.3955396472 | AX7: 0.03563420245 | AY7: 0
A8: 1127 | B8: 0.94 | C8: 11.00125887 | D8: 8.720380428 | G8: 1.802673648 | H8: 0.2843912626 | I8: 0.6972172889 | J8: 3.621401642 | K8: 0 | L8: 0 | M8: 0 | N8: 0.722445546 | O8: 49.42444926 | P8: 8.364313988 | Q8: 2.380630085 | R8: 0.1376086754 | S8: 1.481586739 | T8: 0 | U8: 0.692630333 | V8: 139.3287839 | W8: 85.22105269 | X8: 4.036521146 | Y8: 0 | Z8: 0 | AA8: 0.8898694345 | AB8: 1.041238977 | AC8: 6.02037955 | AD8: 0.302739086 | AE8: 0 | AF8: 0 | AG8: 6.949238109 | AH8: 0.1330217196 | AI8: 1103.383055 | AJ8: 83.19591169 | AK8: 1.2155433 | AL8: 0 | AM8: 0 | AN8: 1.09398897 | AO8: 0 | AP8: 0 | AQ8: 0 | AR8: 0.4403477614 | AS8: 0.2201738807 | AT8: 0 | AU8: 0.8027172734 | AV8: 0.3944782029 | AW8: 0 | AX8: 0.8944563903 | AY8: 0
A9: 1127 | B9: 0.72 | C9: 11.00125887 | D9: 6.679440328 | G9: 0 | H9: 1.119854304 | I9: 0 | J9: 4.865677123 | K9: 0.2095983992 | L9: 0 | M9: 1.107877253 | N9: 2.500209476 | O9: 46.33621753 | P9: 6.82991355 | Q9: 0.02395410276 | R9: 0.6347837231 | S9: 0.3173918616 | T9: 0 | U9: 0 | V9: 121.0430755 | W9: 68.11947972 | X9: 1.557016679 | Y9: 0.7665312883 | Z9: 0 | AA9: 1.688764245 | AB9: 1.844465913 | AC9: 3.817685127 | AD9: 0.308409073 | AE9: 0 | AF9: 0.6048410947 | AG9: 5.515432161 | AH9: 0.8563591737 | AI9: 966.9852088 | AJ9: 78.89882597 | AK9: 0.1018049367 | AL9: 0 | AM9: 0.8024624425 | AN9: 0.889296065 | AO9: 0 | AP9: 0 | AQ9: 0 | AR9: 0 | AS9: 0 | AT9: 0.4311738497 | AU9: 0 | AV9: 0.1018049367 | AW9: 0 | AX9: 0 | AY9: 0.9581641104
A10: 1127 | B10: 1.14 | C10: 11.00125887 | D10: 10.57578052 | G10: 0 | H10: 0.1437246166 | I10: 1.093063531 | J10: 3.402112963 | K10: 1.115756892 | L10: 0 | M10: 0.7677920306 | N10: 0.2458447389 | O10: 49.73628178 | P10: 10.15338771 | Q10: 6.017522762 | R10: 0 | S10: 3.26027946 | T10: 1.011745656 | U10: 0.1966757911 | V10: 113.7031917 | W10: 72.5998425 | X10: 5.499357697 | Y10: 1.61879305 | Z10: 1.902460056 | AA10: 0.7564453503 | AB10: 3.838960153 | AC10: 9.739233885 | AD10: 1.807904387 | AE10: 0 | AF10: 0.6051562803 | AG10: 7.360213259 | AH10: 3.449390797 | AI10: 866.7653402 | AJ10: 64.67607745 | AK10: 0 | AL10: 1.18194586 | AM10: 1.028765676 | AN10: 6.565945641 | AO10: 0.8245254319 | AP10: 0.1475068433 | AQ10: 0.03782226752 | AR10: 0.4160449427 | AS10: 0 | AT10: 0 | AU10: 2.118046981 | AV10: 2.114264754 | AW10: 0.2836670064 | AX10: 0.01891113376 | AY10: 0.09077344204
A11: 1127 | B11: 0.89 | C11: 11.00125887 | D11: 8.256530406 | G11: 2.204315748 | H11: 1.729540049 | I11: 0 | J11: 3.880564647 | K11: 6.637170495 | L11: 1.283832249 | M11: 4.011370197 | N11: 0 | O11: 42.63291997 | P11: 12.73174019 | Q11: 8.812418344 | R11: 4.282670597 | S11: 4.442544047 | T11: 0.8332797994 | U11: 1.516375449 | V11: 99.61811555 | W11: 73.70650505 | X11: 9.444645168 | Y11: 1.589045199 | Z11: 1.603579149 | AA11: 3.042440198 | AB11: 4.176088297 | AC11: 24.64715686 | AD11: 5.481721471 | AE11: 1.625380074 | AF11: 2.519217998 | AG11: 5.319425696 | AH11: 8.579875144 | AI11: 766.2976685 | AJ11: 63.28324058 | AK11: 0 | AL11: 3.270138748 | AM11: 4.432854747 | AN11: 11.16207359 | AO11: 4.180932947 | AP11: 0.7896779494 | AQ11: 0.4675087247 | AR11: 1.119114149 | AS11: 0.6540277495 | AT11: 0.9301727993 | AU11: 3.439701497 | AV11: 5.983142746 | AW11: 0.8817262994 | AX11: 0.6540277495 | AY11: 1.695627499
A12: 1127 | B12: 1.15 | C12: 11.00125887 | D12: 10.66855052 | G12: 1.212910786 | H12: 4.038036836 | I12: 0.3880564647 | J12: 5.75335889 | K12: 8.117316388 | L12: 8.154809766 | M12: 4.026788822 | N12: 2.718269922 | O12: 34.91570848 | P12: 15.19981554 | Q12: 14.3337185 | R12: 2.776384658 | S12: 6.257644827 | T12: 0.8998410776 | U12: 4.128020944 | V12: 76.06469109 | W12: 61.31667076 | X12: 15.62349071 | Y12: 3.678100405 | Z12: 2.946979529 | AA12: 4.240501078 | AB12: 7.532419687 | AC12: 32.15057184 | AD12: 9.184002998 | AE12: 4.540448104 | AF12: 2.913235489 | AG12: 8.316031292 | AH12: 16.39210496 | AI12: 541.7643181 | AJ12: 46.63238918 | AK12: 0.5961447139 | AL12: 2.01526908 | AM12: 2.594541774 | AN12: 12.74024992 | AO12: 11.67168864 | AP12: 2.25710137 | AQ12: 0.6542594502 | AR12: 0.4349231875 | AS12: 0.6448861056 | AT12: 1.450993738 | AU12: 7.348702134 | AV12: 5.489030573 | AW12: 0.7911102807 | AX12: 0 | AY12: 0.8548490237
A13: 1127 | B13: 0.67 | C13: 11.00125887 | D13: 6.215590305 | G13: 4.871620958 | H13: 8.700702161 | I13: 1.624946225 | J13: 6.268109397 | K13: 11.06894062 | L13: 6.596316357 | M13: 5.830500117 | N13: 3.603841132 | O13: 29.68342361 | P13: 20.79287624 | Q13: 20.63842591 | R13: 6.68319467 | S13: 4.627074596 | T13: 2.17517554 | U13: 3.893435508 | V13: 77.46649576 | W13: 75.62274489 | X13: 21.93838289 | Y13: 7.503712071 | Z13: 3.327117616 | AA13: 2.123692095 | AB13: 10.02640086 | AC13: 49.07015827 | AD13: 11.80579742 | AE13: 4.266690483 | AF13: 1.512326189 | AG13: 12.61344396 | AH13: 25.033825 | AI13: 499.5374289 | AJ13: 49.55281556 | AK13: 3.738985174 | AL13: 2.171957825 | AM13: 3.339988477 | AN13: 13.18619728 | AO13: 11.7382254 | AP13: 2.895943767 | AQ13: 3.101877546 | AR13: 0.9524437277 | AS13: 0 | AT13: 2.61278482 | AU13: 12.25949528 | AV13: 6.075046479 | AW13: 1.589551356 | AX13: 0 | AY13: 0.7915579629
A14: 1127 | B14: 0.85 | C14: 11.00125887 | D14: 7.885450387 | G14: 2.153332932 | H14: 17.5665299 | I14: 4.306665863 | J14: 6.107450765 | K14: 10.83007258 | L14: 13.44247884 | M14: 3.342865493 | N14: 5.224812531 | O14: 37.22044849 | P14: 14.79687199 | Q14: 19.30137057 | R14: 4.060643137 | S14: 8.364772684 | T14: 1.077934624 | U14: 3.358083394 | V14: 68.163513 | W14: 57.50337365 | X14: 22.02537477 | Y14: 8.958270806 | Z14: 5.610332679 | AA14: 3.403737096 | AB14: 11.65183921 | AC14: 55.03807375 | AD14: 11.38552595 | AE14: 4.986398756 | AF14: 3.332720226 | AG14: 11.79894558 | AH14: 26.50958281 | AI14: 416.3668324 | AJ14: 38.04475144 | AK14: 3.535625567 | AL14: 2.72654052 | AM14: 5.052342992 | AN14: 11.51741442 | AO14: 16.25779045 | AP14: 1.460918455 | AQ14: 2.358774589 | AR14: 1.329029984 | AS14: 0.1775421734 | AT14: 3.297211792 | AU14: 12.52940481 | AV14: 2.926909544 | AW14: 0.1826148069 | AX14: 2.231958751 | AY14: 0.5478444208
A15: 1127 | B15: 1.11 | C15: 11.00125887 | D15: 10.29747051 | G15: 4.451578664 | H15: 19.83011264 | I15: 5.230410708 | J15: 11.01047096 | K15: 9.49747804 | L15: 15.14935148 | M15: 2.548198607 | N15: 4.379716356 | O15: 39.52426955 | P15: 13.96847895 | Q15: 22.86775183 | R15: 4.783699062 | S15: 4.035942611 | T15: 0.03301781732 | U15: 4.206858371 | V15: 66.618302 | W15: 54.1492204 | X15: 22.65604935 | Y15: 10.33651905 | Z15: 1.825691075 | AA15: 1.829575524 | AB15: 16.99058035 | AC15: 60.40318345 | AD15: 14.34915496 | AE15: 4.772045715 | AF15: 2.909452373 | AG15: 17.95392372 | AH15: 30.87360142 | AI15: 373.7345009 | AJ15: 28.01658911 | AK15: 3.018216948 | AL15: 1.553779639 | AM15: 6.984239475 | AN15: 4.024289264 | AO15: 17.8568125 | AP15: 2.050989123 | AQ15: 0.4739027897 | AR15: 0.2641425385 | AS15: 0 | AT15: 2.66473208 | AU15: 12.896371 | AV15: 2.656963182 | AW15: 0.7885431665 | AX15: 0.7963120647 | AY15: 0.08157343102
A16: 1127 | B16: 0.63 | C16: 11.00125887 | D16: 5.844510287 | G16: 6.423121554 | H16: 17.45227487 | I16: 5.109067917 | J16: 11.40899694 | K16: 7.665312883 | L16: 10.91622683 | M16: 2.340658041 | N16: 3.815546368 | O16: 40.80752506 | P16: 14.30059935 | Q16: 20.10091423 | R16: 4.366490732 | S16: 1.964236426 | T16: 0.5543663782 | U16: 3.114033359 | V16: 74.17216819 | W16: 45.44435495 | X16: 18.84503484 | Y16: 7.398395738 | Z16: 1.17717305 | AA16: 3.736840031 | AB16: 13.46904978 | AC16: 60.141908 | AD16: 8.904082197 | AE16: 2.682859509 | AF16: 1.656255105 | AG16: 17.74656813 | AH16: 27.04760403 | AI16: 365.9091857 | AJ16: 27.29056707 | AK16: 1.950548368 | AL16: 1.625456973 | AM16: 8.356559849 | AN16: 1.60150287 | AO16: 15.54963471 | AP16: 1.950548368 | AQ16: 0.1847887927 | AR16: 0 | AS16: 0.6159626424 | AT16: 2.853960243 | AU16: 9.478980664 | AV16: 0.4927701139 | AW16: 0.1300365578 | AX16: 1.095044698 | AY16: 0
A17: 1127 | B17: 0.51 | C17: 11.00125887 | D17: 4.731270232 | G17: 6.919917568 | H17: 11.59096761 | I17: 0.6129432177 | J17: 8.534705907 | K17: 4.734457957 | L17: 9.215284238 | M17: 0.4819001849 | N17: 3.402891657 | O17: 41.53218699 | P17: 13.33679898 | Q17: 12.83376282 | R17: 4.751366736 | S17: 0 | T17: 0.5833528555 | U17: 3.331029349 | V17: 73.97590558 | W17: 52.08749192 | X17: 9.494279082 | Y17: 5.478444208 | Z17: 0.1859965626 | AA17: 1.640151507 | AB17: 8.750292832 | AC17: 56.75008757 | AD17: 5.715167106 | AE17: 2.553225541 | AF17: 1.335793495 | AG17: 16.18170095 | AH17: 16.72278186 | AI17: 428.7389856 | AJ17: 33.18347765 | AK17: 2.984399391 | AL17: 0.1056798651 | AM17: 2.595497487 | AN17: 0.4692186011 | AO17: 14.46545994 | AP17: 1.859965626 | AQ17: 1.014526705 | AR17: 0.4734457957 | AS17: 0 | AT17: 1.454154944 | AU17: 6.340791907 | AV17: 1.099070597 | AW17: 1.06525304 | AX17: 1.81769368 | AY17: 0.3128124008
A18: 1127 | B18: 1 | C18: 11.00125887 | D18: 9.277000456 | G18: 2.546081582 | H18: 4.458337606 | I18: 0 | J18: 6.609895116 | K18: 1.271962857 | L18: 5.432790506 | M18: 0.2630160483 | N18: 0.9593618156 | O18: 47.64471039 | P18: 10.00754505 | Q18: 8.399266592 | R18: 2.188207287 | S18: 1.897164939 | T18: 0.6208903435 | U18: 2.526678759 | V18: 103.7512076 | W18: 62.7659773 | X18: 5.286191397 | Y18: 2.746577423 | Z18: 0 | AA18: 0.8839063919 | AB18: 8.791634795 | AC18: 39.29071705 | AD18: 3.031152163 | AE18: 0 | AF18: 0.6812546825 | AG18: 16.01379678 | AH18: 3.7296538 | AI18: 650.5076753 | AJ18: 52.22593254 | AK18: 1.414250227 | AL18: 0.1077934624 | AM18: 1.099493317 | AN18: 0 | AO18: 10.39991325 | AP18: 1.595343244 | AQ18: 0.6877222902 | AR18: 0.2888864793 | AS18: 0.08623476994 | AT18: 0.04311738497 | AU18: 0.3664977722 | AV18: 0.2500808328 | AW18: 0.5691494816 | AX18: 0.3018216948 | AY18: 1.030505501
A19: 1127 | B19: 0.73 | C19: 11.00125887 | D19: 6.772210333 | G19: 0 | H19: 0 | I19: 0 | J19: 4.317644988 | K19: 0.1476622773 | L19: 0.7678438419 | M19: 0 | N19: 0.3691556932 | O19: 41.19777536 | P19: 7.876305871 | Q19: 3.473016762 | R19: 0.9538983113 | S19: 0.2362596437 | T19: 0.4666127962 | U19: 0.1712882417 | V19: 99.30288148 | W19: 59.24801214 | X19: 3.697463423 | Y19: 0.04725192873 | Z19: 0.2953245546 | AA19: 0 | AB19: 2.616575554 | AC19: 10.92700852 | AD19: 1.609518822 | AE19: 0 | AF19: 0 | AG19: 5.380813384 | AH19: 2.421661348 | AI19: 681.8512381 | AJ19: 50.86965453 | AK19: 0 | AL19: 0.5168179705 | AM19: 0.03543894655 | AN19: 0 | AO19: 1.039542432 | AP19: 0.04134543764 | AQ19: 0.032485701 | AR19: 0 | AS19: 0.5374906893 | AT19: 0 | AU19: 0.2067271882 | AV19: 0.3130440279 | AW19: 0.1535687684 | AX19: 0 | AY19: 0.03543894655
A20: 1127 | B20: 1.03 | C20: 11.00125887 | D20: 9.555310469 | G20: 0.2637276945 | H20: 1.04653847 | I20: 0 | J20: 3.390784643 | K20: 0.6279230821 | L20: 0 | M20: 0 | N20: 0.1988423093 | O20: 37.25676954 | P20: 5.475489276 | Q20: 3.70056003 | R20: 0 | S20: 0 | T20: 0 | U20: 1.297707703 | V20: 89.53136612 | W20: 51.35573581 | X20: 3.062171564 | Y20: 1.06746924 | Z20: 0 | AA20: 0.7618800062 | AB20: 0.874906161 | AC20: 5.96526928 | AD20: 0.420708465 | AE20: 1.396082319 | AF20: 0.2386107712 | AG20: 6.346209283 | AH20: 0.5483861583 | AI20: 647.7277761 | AJ20: 49.97221195 | AK20: 0 | AL20: 0.2616346175 | AM20: 0.2302384634 | AN20: 0.2721000022 | AO20: 0.3976846186 | AP20: 0.2009353863 | AQ20: 0 | AR20: 0.04604769268 | AS20: 0.07535076985 | AT20: 0 | AU20: 0.1883769246 | AV20: 0.02930307716 | AW20: 0 | AX20: 0.7116461597 | AY20: 0.7493215446

Sheet 10.5eV
A2: A | J2: M/Z | K2: 28 | L2: 30 | M2: 32 | N2: 42 | O2: 43 | P2: 44 | Q2: 45 | R2: 55 | S2: 56 | T2: 57 | U2: 58 | V2: 59 | W2: 60 | X2: 61 | Y2: 69 | Z2: 70 | AA2: 71 | AB2: 72 | AC2: 73 | AD2: 74 | AE2: 83 | AF2: 84 | AG2: 85 | AH2: 86 | AI2: 87 | AJ2: 97 | AK2: 98 | AL2: 99 | AM2: 100 | AN2: 101 | AO2: 110 | AP2: 111 | AQ2: 112 | AR2: 113 | AS2: 114 | AT2: 115 | AU2: 116 | AV2: 117 | AW2: 119 | AX2: 126 | AY2: 128 | AZ2: 129 | BA2: 130 | BB2: 144 | BC2: 146
A3: B | D3: Temperature(K) | E3: Wavelength(Å) | F3: Photon Indensity(nA) | G3: Energy(eV) | H3: Corrected PI(nA) | J3: Formula
A4: C | J4: Range | K4: 9455 | L4: 9766 | M4: 10069 | N4: 11446 | O4: 11571 | P4: 11697 | Q4: 11825 | R4: 13009 | S4: 13122 | T4: 13234 | U4: 13344 | V4: 13457 | W4: 13557 | X4: 13670 | Y4: 14501 | Z4: 14599 | AA4: 14700 | AB4: 14798 | AC4: 14896 | AD4: 14997 | AE4: 15848 | AF4: 15937 | AG4: 16026 | AH4: 16118 | AI4: 16209 | AJ4: 17084 | AK4: 17165 | AL4: 17247 | AM4: 17332 | AN4: 17416 | AO4: 18149 | AP4: 18225 | AQ4: 18306 | AR4: 18381 | AS4: 18465 | AT4: 18544 | AU4: 18617 | AV4: 18697 | AW4: 18854 | AX4: 19376 | AY4: 19530 | AZ4: 19605 | BA4: 19679 | BB4: 20674 | BC4: 20812
A5: D | K5: 9475 | L5: 9779 | M5: 10087 | N5: 11462 | O5: 11590 | P5: 11716 | Q5: 11840 | R5: 13023 | S5: 13146 | T5: 13254 | U5: 13361 | V5: 13469 | W5: 13578 | X5: 13680 | Y5: 14516 | Z5: 14623 | AA5: 14723 | AB5: 14818 | AC5: 14919 | AD5: 15008 | AE5: 15861 | AF5: 15954 | AG5: 16050 | AH5: 16136 | AI5: 16225 | AJ5: 17097 | AK5: 17188 | AL5: 17268 | AM5: 17359 | AN5: 17440 | AO5: 18174 | AP5: 18249 | AQ5: 18333 | AR5: 18411 | AS5: 18492 | AT5: 18567 | AU5: 18637 | AV5: 18720 | AW5: 18877 | AX5: 19407 | AY5: 19559 | AZ5: 19628 | BA5: 19700 | BB5: 20703 | BC5: 20839
A6: E | J6: Background Deduction
A7: F | D7: 227 | E7: 1180 | F7: 1.69 | G7: 10.50713453 | H7: 16.40586968 | K7: 0.4242384058 | L7: 0 | M7: 0.04998211103 | N7: 0 | O7: 0.2560059345 | P7: 0 | Q7: 0.04388673164 | R7: 0 | S7: 0.3657227636 | T7: 0.3474366255 | U7: 0.7168166167 | V7: 0 | W7: 0 | X7: 0.191394913 | Y7: 0.3486557013 | Z7: 2.407674861 | AA7: 0.473001441 | AB7: 0.1072786773 | AC7: 0.2169955064 | AD7: 0.08777346327 | AE7: 0.1170312844 | AF7: 0.07070640097 | AG7: 0 | AH7: 0 | AI7: 0.1523844849 | AJ7: 0 | AK7: 5.546795249 | AL7: 0 | AM7: 428.1662683 | AN7: 32.27503389 | AO7: 0 | AP7: 0 | AQ7: 0 | AR7: 0 | AS7: 0.2389388722 | AT7: 0.3193978802 | AU7: 0.2572250104 | AV7: 0 | AW7: 0.0975260703 | AX7: 0.08777346327 | AY7: 0.04876303515 | AZ7: 0 | BA7: 0 | BB7: 0.03657227636 | BC7: 0.004876303515
A8: G | D8: 247 | E8: 1180 | F8: 1.29 | G8: 10.50713453 | H8: 12.5228236 | K8: 0.1293637962 | L8: 0 | M8: 0 | N8: 0.3721205495 | O8: 0.1117958732 | P8: 0.0479125171 | Q8: 0.4376009895 | R8: 0 | S8: 1.277667123 | T8: 0 | U8: 1.552365554 | V8: 0 | W8: 0.4088534792 | X8: 0 | Y8: 0 | Z8: 1.31759422 | AA8: 0.4439893251 | AB8: 0 | AC8: 0.06388335613 | AD8: 0 | AE8: 0.1597083903 | AF8: 0 | AG8: 0 | AH8: 0 | AI8: 0 | AJ8: 0 | AK8: 4.232272344 | AL8: 0.1501258869 | AM8: 357.9544152 | AN8: 27.62955153 | AO8: 0.04152418148 | AP8: 0.3992709758 | AQ8: 0.003194167806 | AR8: 0 | AS8: 0.3066401094 | AT8: 0 | AU8: 0.3449701231 | AV8: 0.04471834929 | AW8: 0.2012325718 | AX8: 0.1086017054 | AY8: 0.1597083903 | AZ8: 0.04152418148 | BA8: 0.1692908937 | BB8: 0.07985419516 | BC8: 0.02555334245
A9: H | D9: 267 | E9: 1180 | F9: 0.99 | G9: 10.50713453 | H9: 9.610539044 | K9: 0.8074469043 | L9: 0 | M9: 0 | N9: 0.1560786542 | O9: 0.187294385 | P9: 0 | Q9: 0 | R9: 0 | S9: 0.4162097445 | T9: 0 | U9: 1.069659043 | V9: 0.1519165567 | W9: 0 | X9: 0.08740404634 | Y9: 0 | Z9: 0.884445707 | AA9: 0.2746984314 | AB9: 0.2767794801 | AC9: 0.3662645751 | AD9: 0.982254997 | AE9: 0.449506524 | AF9: 0 | AG9: 0.5202621806 | AH9: 0.4828033036 | AI9: 0 | AJ9: 0 | AK9: 1.914564825 | AL9: 0.1082145336 | AM9: 308.2948819 | AN9: 24.55637492 | AO9: 0.5951799346 | AP9: 0.1040524361 | AQ9: 0.2122669697 | AR9: 0.09364719251 | AS9: 0.1581597029 | AT9: 0 | AU9: 0.3017520647 | AV9: 0.1664838978 | AW9: 0 | AX9: 0.00832419489 | AY9: 0 | AZ9: 0 | BA9: 0 | BB9: 0 | BC9: 0.04578307189
A10: I | D10: 277 | E10: 1180 | F10: 1.57 | G10: 10.50713453 | H10: 15.24095586 | K10: 0.35562074 | L10: 0.06561268265 | M10: 0 | N10: 0.06561268265 | O10: 0.4592887785 | P10: 1.469724091 | Q10: 1.026182357 | R10: 0.2821345354 | S10: 0.6889331678 | T10: 1.367368306 | U10: 2.923701139 | V10: 0.5196524466 | W10: 0 | X10: 0.7939134601 | Y10: 0.4146721543 | Z10: 1.24664097 | AA10: 4.191338168 | AB10: 1.456601555 | AC10: 0.3411859498 | AD10: 0 | AE10: 0.7952257137 | AF10: 1.112791098 | AG10: 3.739922911 | AH10: 1.274198297 | AI10: 0.3989251105 | AJ10: 0.8975814986 | AK10: 4.973441345 | AL10: 1.740048344 | AM10: 284.341746 | AN10: 19.97906187 | AO10: 0.5458975196 | AP10: 1.574704384 | AQ10: 1.167905751 | AR10: 1.873898216 | AS10: 1.968380479 | AT10: 0.05249014612 | AU10: 0.05249014612 | AV10: 0.08135972648 | AW10: 0.2388301648 | AX10: 0.291320311 | AY10: 2.152095991 | AZ10: 2.241329239 | BA10: 0.4960318808 | BB10: 0.1181028288 | BC10: 0.9317000936
A11: J | D11: 287 | E11: 1180 | F11: 1.25 | G11: 10.50713453 | H11: 12.134519 | K11: 0.7449821458 | L11: 0.01977828706 | M11: 0 | N11: 1.219661035 | O11: 2.109683953 | P11: 3.197489741 | Q11: 2.432729308 | R11: 0.3626019294 | S11: 1.565781059 | T11: 3.13980307 | U11: 5.946671642 | V11: 2.557991793 | W11: 0.1351516282 | X11: 0.2274503012 | Y11: 0.6230160423 | Z11: 3.172766882 | AA11: 9.421057402 | AB11: 4.245738955 | AC11: 1.239439322 | AD11: 0.07581676705 | AE11: 2.086609285 | AF11: 1.638301445 | AG11: 6.510352823 | AH11: 5.022036722 | AI11: 0.9988034964 | AJ11: 1.404258381 | AK11: 4.96105367 | AL11: 6.414757769 | AM11: 243.3190801 | AN11: 19.36623941 | AO11: 0.9493577788 | AP11: 1.689395353 | AQ11: 3.355716037 | AR11: 5.056648724 | AS11: 4.453410969 | AT11: 0.2670068753 | AU11: 0.2867851623 | AV11: 0.4318259341 | AW11: 0.006592762353 | AX11: 0.3197489741 | AY11: 4.730306988 | AZ11: 4.549006023 | BA11: 0.692240047 | BB11: 0.2472285882 | BC11: 1.170215318
A12: K | D12: 302 | E12: 1180 | F12: 1.57 | G12: 10.50713453 | H12: 15.24095586 | K12: 0.08267198014 | L12: 0.2204586137 | M12: 0.2716365062 | N12: 1.030119118 | O12: 2.257076283 | P12: 5.249014612 | Q12: 1.036680386 | R12: 0.7545458505 | S12: 4.592887785 | T12: 3.712365584 | U12: 10.2723216 | V12: 2.325313473 | W12: 0.3359369352 | X12: 0.8004747283 | Y12: 1.131162649 | Z12: 3.543084863 | AA12: 10.86283574 | AB12: 9.524337013 | AC12: 2.359432068 | AD12: 0.4409172274 | AE12: 1.826657085 | AF12: 4.561393698 | AG12: 11.12134971 | AH12: 5.527212386 | AI12: 1.947384421 | AJ12: 0.7479845822 | AK12: 6.406422334 | AL12: 10.54264585 | AM12: 184.0278278 | AN12: 15.3205614 | AO12: 0.5222769539 | AP12: 1.213834629 | AQ12: 3.435480064 | AR12: 5.756856776 | AS12: 8.58213889 | AT12: 1.133787156 | AU12: 0.6954944361 | AV12: 0.412047647 | AW12: 0 | AX12: 0.5222769539 | AY12: 7.099292263 | AZ12: 4.574516234 | BA12: 1.125913634 | BB12: 0.5511465343 | BC12: 1.257139
A13: L | D13: 312 | E13: 1180 | F13: 0.93 | G13: 10.50713453 | H13: 9.028082133 | K13: 1.023473188 | L13: 0.1019042568 | M13: 0.1085501866 | N13: 3.336256755 | O13: 5.40535623 | P13: 6.225020904 | Q13: 4.067309032 | R13: 1.362415607 | S13: 3.766026882 | T13: 8.298550999 | U13: 13.4070557 | V13: 4.169213289 | W13: 0.6513011195 | X13: 0.5272437634 | Y13: 1.014611948 | Z13: 6.479781546 | AA13: 15.66667183 | AB13: 12.35256817 | AC13: 4.802791929 | AD13: 1.364630917 | AE13: 1.980487078 | AF13: 7.465594465 | AG13: 16.44867623 | AH13: 9.951172207 | AI13: 4.703102982 | AJ13: 0.8462483934 | AK13: 8.963143978 | AL13: 19.0516654 | AM13: 176.8747755 | AN13: 20.6577651 | AO13: 1.568439431 | AP13: 2.990668406 | AQ13: 5.307882593 | AR13: 9.813822991 | AS13: 14.20456727 | AT13: 1.519702612 | AU13: 1.27823383 | AV13: 0.8684014927 | AW13: 0.4696457052 | AX13: 0.3057127704 | AY13: 10.03535398 | AZ13: 7.549776242 | BA13: 1.063348767 | BB13: 0.8196646742 | BC13: 1.519702612
A14: M | D14: 327 | E14: 1180 | F14: 1.18 | G14: 10.50713453 | H14: 11.45498593 | K14: 1.031865082 | L14: 0.4469669392 | M14: 0 | N14: 4.314278542 | O14: 4.836321959 | P14: 8.939338783 | Q14: 0.4749023729 | R14: 0 | S14: 5.456139394 | T14: 4.659979534 | U14: 13.97470071 | V14: 3.195115229 | W14: 0.296813983 | X14: 0.5202974526 | Y14: 1.875165987 | Z14: 7.944138958 | AA14: 10.0532642 | AB14: 15.4744843 | AC14: 3.086865424 | AD14: 1.435182906 | AE14: 0.8625065154 | AF14: 7.766050568 | AG14: 15.32083942 | AH14: 12.03842596 | AI14: 3.41161484 | AJ14: 0.9428208873 | AK14: 9.969457901 | AL14: 20.77348688 | AM14: 146.1058102 | AN14: 16.32476907 | AO14: 0.7472728514 | AP14: 1.52771903 | AQ14: 5.241385747 | AR14: 4.546491834 | AS14: 14.20167611 | AT14: 2.294197492 | AU14: 1.674380057 | AV14: 0.7647324975 | AW14: 0 | AX14: 1.543432712 | AY14: 10.68530339 | AZ14: 3.94588001 | BA14: 1.138368923 | BB14: 0.7856840727 | BC14: 1.187255932
A15: N | D15: 352 | E15: 1180 | F15: 1.5 | G15: 10.50713453 | H15: 14.56142279 | K15: 0.4518789196 | L15: 0.3406260549 | M15: 0 | N15: 6.894930627 | O15: 3.557344686 | P15: 11.207696 | Q15: 0.9751794313 | R15: 0.04807222549 | S15: 9.271072058 | T15: 4.634162537 | U15: 15.92426807 | V15: 1.699009798 | W15: 0.09614445098 | X15: 0 | Y15: 1.2608658 | Z15: 10.64456422 | AA15: 8.298639611 | AB15: 16.12205094 | AC15: 4.741294925 | AD15: 0.2966743059 | AE15: 1.813009647 | AF15: 10.7352147 | AG15: 17.82106073 | AH15: 8.738157101 | AI15: 2.880213053 | AJ15: 1.889925208 | AK15: 14.03708984 | AL15: 27.11273517 | AM15: 129.940599 | AN15: 11.77769524 | AO15: 2.095949031 | AP15: 1.339154853 | AQ15: 5.551655298 | AR15: 2.755225267 | AS15: 15.92976203 | AT15: 1.848720443 | AU15: 1.295203104 | AV15: 0.5713727372 | AW15: 0.2994212902 | AX15: 2.425587149 | AY15: 11.74335794 | AZ15: 1.395468031 | BA15: 0.3186501804 | BB15: 0.508192098 | BC15: 0.09339746666
A16: O | D16: 377 | E16: 1180 | F16: 0.87 | G16: 10.50713453 | H16: 8.445625221 | K16: 0 | L16: 0 | M16: 0.5115074239 | N16: 6.841411795 | O16: 2.723303414 | P16: 9.638125997 | Q16: 1.226670581 | R16: 0 | S16: 12.13646087 | T16: 4.340708833 | U16: 15.06105193 | V16: 2.031821156 | W16: 0.1184044963 | X16: 0 | Y16: 0.9898615889 | Z16: 9.945977687 | AA16: 8.240952941 | AB16: 13.64730224 | AC16: 5.39924503 | AD16: 0.8335676538 | AE16: 1.018278668 | AF16: 9.874934989 | AG16: 17.93828119 | AH16: 5.370827951 | AI16: 0.3315325896 | AJ16: 1.776067444 | AK16: 14.30799933 | AL16: 18.83105109 | AM16: 130.4770187 | AN16: 11.84044963 | AO16: 1.567675531 | AP16: 0 | AQ16: 4.248353326 | AR16: 0.3646858485 | AS16: 14.84318765 | AT16: 1.927625199 | AU16: 0.2320728127 | AV16: 0.7909420351 | AW16: 0 | AX16: 1.965514638 | AY16: 10.08806308 | AZ16: 0.3788943881 | BA16: 0.6346481 | BB16: 0.3552134888 | BC16: 0.2320728127
A17: P | D17: 402 | E17: 1180 | F17: 0.71 | G17: 10.50713453 | H17: 6.892406789 | K17: 0 | L17: 0.2031220795 | M17: 0 | N17: 4.761761893 | O17: 1.770063836 | P17: 7.573551822 | Q17: 0.4816895029 | R17: 0.5658400787 | S17: 8.995406379 | T17: 2.379430074 | U17: 9.48289937 | V17: 1.125876669 | W17: 0.417851135 | X17: 0 | Y17: 1.450871997 | Z17: 8.197426781 | AA17: 4.561541557 | AB17: 6.853919312 | AC17: 3.395040472 | AD17: 0 | AE17: 0.6383836785 | AF17: 8.583358732 | AG17: 15.08906876 | AH17: 2.199521947 | AI17: 0.4671807829 | AJ17: 1.154894109 | AK17: 13.41766422 | AL17: 9.082458699 | AM17: 155.0633955 | AN17: 10.44627838 | AO17: 1.416051069 | AP17: 0 | AQ17: 3.992799735 | AR17: 0.1915151036 | AS17: 9.923964457 | AT17: 1.677208028 | AU17: 0 | AV17: 0 | AW17: 0 | AX17: 1.474085949 | AY17: 4.932964788 | AZ17: 0.7312394863 | BA17: 0 | BB17: 0 | BC17: 0.1915151036
A18: Q | D18: 427 | E18: 1180 | F18: 1.38 | G18: 10.50713453 | H18: 13.39650897 | K18: 0 | L18: 0 | M18: 0 | N18: 2.543946343 | O18: 0.8360387041 | P18: 3.120215878 | Q18: 0.2209530861 | R18: 0 | S18: 7.01675341 | T18: 0.7927438427 | U18: 5.413350609 | V18: 0.3821891219 | W18: 0 | X18: 0 | Y18: 0.6718168158 | Z18: 9.069527014 | AA18: 2.000521185 | AB18: 4.269769096 | AC18: 1.737766164 | AD18: 0.4568354348 | AE18: 0.9942888874 | AF18: 4.705703563 | AG18: 10.15189855 | AH18: 0.464300066 | AI18: 0.3299367029 | AJ18: 0.4717646973 | AK18: 10.27730436 | AL18: 2.406597127 | AM18: 219.4183579 | AN18: 17.54188352 | AO18: 0.3374013342 | AP18: 0 | AQ18: 0.7494489812 | AR18: 0.2194601598 | AS18: 9.698048968 | AT18: 0.5762695353 | AU18: 0.197066266 | AV18: 0 | AW18: 0.197066266 | AX18: 0.1015189855 | AY18: 1.224199531 | AZ18: 0 | BA18: 0 | BB18: 0.104504838 | BC18: 0.4299627621
A19: R | D19: 453 | E19: 1180 | F19: 1 | G19: 10.50713453 | H19: 9.707615196 | K19: 0 | L19: 0.5397824176 | M19: 0.5068186059 | N19: 1.151673173 | O19: 0 | P19: 0.6180714706 | Q19: 0 | R19: 0 | S19: 0.8240952941 | T19: 0 | U19: 3.172766882 | V19: 0.1895419176 | W19: 0 | X19: 0.2122045382 | Y19: 0 | Z19: 3.450899044 | AA19: 0.8694205352 | AB19: 0.972432447 | AC19: 0.2925538294 | AD19: 0 | AE19: 0.7499267176 | AF19: 0.3832043117 | AG19: 1.596684632 | AH19: 0.2080840618 | AI19: 0.6386738529 | AJ19: 0.2183852529 | AK19: 3.457079759 | AL19: 0.8076133882 | AM19: 221.0882855 | AN19: 18.18160243 | AO19: 0.01648190588 | AP19: 0.05150595588 | AQ19: 0.5026981294 | AR19: 0.5830474206 | AS19: 1.269106753 | AT19: 0.05768667059 | AU19: 0 | AV19: 0 | AW19: 0 | AX19: 0.2431081118 | AY19: 0.2060238235 | AZ19: 0 | BA19: 0.05768667059 | BB19: 0 | BC19: 0
A20: S | D20: 477 | E20: 1180 | F20: 1.42 | G20: 10.50713453 | H20: 13.78481358 | K20: 0.3496601512 | L20: 0 | M20: 0 | N20: 0.2016712075 | O20: 0 | P20: 0.5223139188 | Q20: 0.2553534714 | R20: 0.0435261599 | S20: 0.3627179992 | T20: 0.5716435667 | U20: 2.495499834 | V20: 0.06819098384 | W20: 0.406244159 | X20: 0 | Y20: 0.2959778873 | Z20: 1.233241197 | AA20: 0.3569145112 | AB20: 0.3917354391 | AC20: 0 | AD20: 0 | AE20: 0.1886133596 | AF20: 1.120073181 | AG20: 0.7979795981 | AH20: 0.1160697597 | AI20: 0.2553534714 | AJ20: 0.1973185915 | AK20: 3.638786967 | AL20: 0.4990999668 | AM20: 206.2762752 | AN20: 17.22910496 | AO20: 0 | AP20: 0.03627179992 | AQ20: 0.3830302071 | AR20: 0.1929659755 | AS20: 0.2060238235 | AT20: 0.2988796313 | AU20: 0 | AV20: 0.0406244159 | AW20: 0 | AX20: 0.1247749917 | AY20: 0 | AZ20: 0 | BA20: 0 | BB20: 0 | BC20: 0
A21: T

Sheet 10eV
A2: A | J2: M/Z | K2: 28 | L2: 30 | M2: 32 | N2: 42 | O2: 43 | P2: 44 | Q2: 45 | R2: 55 | S2: 56 | T2: 57 | U2: 58 | V2: 59 | W2: 60 | X2: 61 | Y2: 69 | Z2: 70 | AA2: 71 | AB2: 72 | AC2: 73 | AD2: 74 | AE2: 83 | AF2: 84 | AG2: 85 | AH2: 86 | AI2: 87 | AJ2: 97 | AK2: 98 | AL2: 99 | AM2: 100 | AN2: 101 | AO2: 110 | AP2: 111 | AQ2: 112 | AR2: 113 | AS2: 114 | AT2: 115 | AU2: 116 | AV2: 117 | AW2: 119 | AX2: 126 | AY2: 128 | AZ2: 129 | BA2: 130 | BB2: 144 | BC2: 146
A3: B | D3: Temperature(K) | E3: Wavelength(Å) | F3: Photon Indensity(nA) | G3: Energy(eV) | H3: Corrected PI(nA) | J3: Formula | K3: =ROUND(K2,0) -> 28 | L3: =ROUND(L2,0) -> 30 | M3: 32 | N3: 42 | O3: 43 | P3: 44 | Q3: 45 | R3: 55 | S3: 56 | T3: 57 | U3: 58 | V3: 59 | W3: 60 | X3: 61 | Y3: 69 | Z3: 70 | AA3: 71 | AB3: 72 | AC3: 73 | AD3: 74 | AE3: 83 | AF3: 84 | AG3: 85 | AH3: 86 | AI3: 87 | AJ3: 97 | AK3: 98 | AL3: 99 | AM3: 100 | AN3: 101 | AO3: 110 | AP3: 111 | AQ3: 112 | AR3: 113 | AS3: 114 | AT3: 115 | AU3: 116 | AV3: 117 | AW3: 119 | AX3: 126 | AY3: 128 | AZ3: 129 | BA3: 130 | BB3: 144 | BC3: 146
A4: C | J4: Range | K4: 9455 | L4: 9766 | M4: 10069 | N4: 11446 | O4: 11571 | P4: 11697 | Q4: 11825 | R4: 13009 | S4: 13122 | T4: 13234 | U4: 13344 | V4: 13457 | W4: 13557 | X4: 13670 | Y4: 14501 | Z4: 14599 | AA4: 14700 | AB4: 14798 | AC4: 14896 | AD4: 14997 | AE4: 15848 | AF4: 15937 | AG4: 16026 | AH4: 16118 | AI4: 16209 | AJ4: 17084 | AK4: 17165 | AL4: 17247 | AM4: 17332 | AN4: 17416 | AO4: 18149 | AP4: 18225 | AQ4: 18306 | AR4: 18381 | AS4: 18465 | AT4: 18544 | AU4: 18617 | AV4: 18697 | AW4: 18854 | AX4: 19376 | AY4: 19530 | AZ4: 19605 | BA4: 19679 | BB4: 20674 | BC4: 20812
A5: D | K5: 9475 | L5: 9779 | M5: 10087 | N5: 11462 | O5: 11590 | P5: 11716 | Q5: 11840 | R5: 13023 | S5: 13146 | T5: 13254 | U5: 13361 | V5: 13469 | W5: 13578 | X5: 13680 | Y5: 14516 | Z5: 14623 | AA5: 14723 | AB5: 14818 | AC5: 14919 | AD5: 15008 | AE5: 15861 | AF5: 15954 | AG5: 16050 | AH5: 16136 | AI5: 16225 | AJ5: 17097 | AK5: 17188 | AL5: 17268 | AM5: 17359 | AN5: 17440 | AO5: 18174 | AP5: 18249 | AQ5: 18333 | AR5: 18411 | AS5: 18492 | AT5: 18567 | AU5: 18637 | AV5: 18720 | AW5: 18877 | AX5: 19407 | AY5: 19559 | AZ5: 19628 | BA5: 19700 | BB5: 20703 | BC5: 20839
A6: E | J6: Background Deduction
A7: F | D7: 227 | E7: 1240 | F7: 2.44 | G7: 9.998724793 | H7: 24.93403349 | K7: 0.02967831098 | L7: 0 | M7: 0 | N7: 0.02646984493 | O7: 0 | P7: 0.02406349539 | Q7: 0.1507979044 | R7: 0 | S7: 0 | T7: 0 | U7: 1.918662699 | V7: 0.05775238894 | W7: 0 | X7: 0.02245926236 | Y7: 0 | Z7: 0.1804762154 | AA7: 0.08181588433 | AB7: 0 | AC7: 0.003208466052 | AD7: 0 | AE7: 0.006416932104 | AF7: 0 | AG7: 0 | AH7: 0 | AI7: 0 | AJ7: 0 | AK7: 0.9320593881 | AL7: 0.06256508801 | AM7: 5.866680176 | AN7: 0.6015873847 | AO7: 0 | AP7: 0 | AQ7: 0.00802116513 | AR7: 0 | AS7: 0.07058625314 | AT7: 0.06096085499 | AU7: 0 | AV7: 0.182882565 | AW7: 0.001604233026 | AX7: 0 | AY7: 0.1122963118 | AZ7: 0 | BA7: 0 | BB7: 0.02406349539 | BC7: 0
A8: G | D8: 247 | E8: 1240 | F8: 1.87 | G8: 9.998724793 | H8: 19.10927977 | K8: 0 | L8: 0 | M8: 0.03244496954 | N8: 0.05128398411 | O8: 0.2197885033 | P8: 0.06279671524 | Q8: 0.03767802914 | R8: 0.03663141722 | S8: 0.02616529802 | T8: 0 | U8: 1.741562236 | V8: 0.03872464107 | W8: 0 | X8: 0 | Y8: 0.09000862518 | Z8: 0.1308264901 | AA8: 0.1067544159 | AB8: 0.03872464107 | AC8: 0 | AD8: 0.03977125299 | AE8: 0 | AF8: 0 | AG8: 0 | AH8: 0 | AI8: 0.05023737219 | AJ8: 0 | AK8: 1.678765521 | AL8: 0 | AM8: 4.592533108 | AN8: 0.3401488742 | AO8: 0.07744928213 | AP8: 0 | AQ8: 0 | AR8: 0 | AS8: 0 | AT8: 0 | AU8: 0 | AV8: 0.1046611921 | AW8: 0.08163572981 | AX8: 0.05651704372 | AY8: 0.1569917881 | AZ8: 0 | BA8: 0.01255934305 | BB8: 0 | BC8: 0
A9: H | D9: 267 | E9: 1240 | F9: 1.44 | G9: 9.998724793 | H9: 14.71516731 | K9: 0.03941511421 | L9: 0.1359141869 | M9: 0.1100904914 | N9: 0.1576604568 | O9: 0 | P9: 0 | Q9: 0 | R9: 0.05436567477 | S9: 0 | T9: 0.2718283738 | U9: 1.527675461 | V9: 0 | W9: 0.06795709346 | X9: 0 | Y9: 0 | Z9: 0.1019356402 | AA9: 0.1032947821 | AB9: 0.1182453426 | AC9: 0 | AD9: 0 | AE9: 0.07883022842 | AF9: 0 | AG9: 0.1698927337 | AH9: 0 | AI9: 0.04485168168 | AJ9: 0.02990112112 | AK9: 0.7502463118 | AL9: 0 | AM9: 4.422647642 | AN9: 0.4756996542 | AO9: 0 | AP9: 0 | AQ9: 0.02990112112 | AR9: 0.06795709346 | AS9: 0.06795709346 | AT9: 0.002718283738 | AU9: 0.01087313495 | AV9: 0 | AW9: 0.1712518755 | AX9: 0 | AY9: 0 | AZ9: 0 | BA9: 0 | BB9: 0.06795709346 | BC9: 0
A10: I | D10: 277 | E10: 1240 | F10: 2.27 | G10: 9.998724793 | H10: 23.19682624 | K10: 0 | L10: 0 | M10: 0 | N10: 0.2405501486 | O10: 0.543177755 | P10: 0.05173121476 | Q10: 0.4017791013 | R10: 0.1638155134 | S10: 0.08621869126 | T10: 0.5043793439 | U10: 2.636567579 | V10: 0.6302586331 | W10: 0.108635551 | X10: 0.226755158 | Y10: 0.09311618657 | Z10: 1.142397659 | AA10: 2.40722586 | AB10: 2.245134721 | AC10: 0.1638155134 | AD10: 0.05000684093 | AE10: 0.4138497181 | AF10: 1.653674498 | AG10: 3.384083632 | AH10: 1.395018425 | AI10: 0.2810729335 | AJ10: 0.6259476986 | AK10: 2.257205337 | AL10: 4.174709031 | AM10: 5.764581698 | AN10: 0.7328588757 | AO10: 0.532831512 | AP10: 0.819077567 | AQ10: 1.95199117 | AR10: 2.760722494 | AS10: 3.69188436 | AT10: 0.4586834375 | AU10: 0.1819214386 | AV10: 0 | AW10: 0 | AX10: 0.5914602221 | AY10: 4.457506338 | AZ10: 3.58842193 | BA10: 0.5673189885 | BB10: 0 | BC10: 1.607116405
A11: J | D11: 287 | E11: 1240 | F11: 1.81 | G11: 9.998724793 | H11: 18.4961478 | K11: 0 | L11: 0.3006031343 | M11: 0.06055314936 | N11: 0.9126224653 | O11: 0.6812229303 | P11: 0.6379706807 | Q11: 1.133208938 | R11: 0.308172278 | S11: 1.189436862 | T11: 2.8946568 | U11: 6.414308607 | V11: 1.839301912 | W11: 0.4000833082 | X11: 0.6098567185 | Y11: 0.5601166315 | Z11: 1.108338894 | AA11: 9.547934086 | AB11: 8.048162333 | AC11: 1.150509838 | AD11: 0 | AE11: 0.3957580833 | AF11: 4.072199294 | AG11: 6.650033367 | AH11: 5.470328261 | AI11: 1.508422203 | AJ11: 0.8369310286 | AK11: 4.945894735 | AL11: 8.22441525 | AM11: 8.062219314 | AN11: 1.919318573 | AO11: 1.228363887 | AP11: 2.027449197 | AQ11: 5.709296939 | AR11: 6.749513541 | AS11: 8.036267965 | AT11: 0.4865878073 | AU11: 0.2000416541 | AV11: 0.3654815086 | AW11: 0 | AX11: 0.5276774444 | AY11: 8.077357602 | AZ11: 9.736081372 | BA11: 1.025078314 | BB11: 0.140569811 | BC11: 3.775921385
A12: K | D12: 302 | E12: 1240 | F12: 2.23 | G12: 9.998724793 | H12: 22.78807159 | K12: 0 | L12: 0.04212730314 | M12: 0.2053706028 | N12: 0.6099682434 | O12: 0.6757921545 | P12: 0.5353678107 | Q12: 0.9004711046 | R12: 0.4607673781 | S12: 0.9873586673 | T12: 1.047039013 | U12: 3.730021632 | V12: 0.6722815459 | W12: 0 | X12: 0.06582391116 | Y12: 0.2387213845 | Z12: 1.53589126 | AA12: 4.077571883 | AB12: 4.705970822 | AC12: 1.616635258 | AD12: 0 | AE12: 0.2106365157 | AF12: 3.329812252 | AG12: 4.300495529 | AH12: 3.192020865 | AI12: 0.7407384135 | AJ12: 0.8232377155 | AK12: 3.937147539 | AL12: 6.903611802 | AM12: 4.951713423 | AN12: 0.8776521487 | AO12: 0.9513749292 | AP12: 0.8118282376 | AQ12: 2.094078027 | AR12: 2.553090101 | AS12: 5.15883933 | AT12: 0.6441966772 | AU12: 0.2685615575 | AV12: 0 | AW12: 0 | AX12: 0.5336125064 | AY12: 4.765651168 | AZ12: 3.601884418 | BA12: 0.8249930198 | BB12: 0.4827086818 | BC12: 0.9250453648
A13: L | D13: 312 | E13: 1240 | F13: 1.36 | G13: 9.998724793 | H13: 13.89765801 | K13: 0.541098363 | L13: 0 | M13: 0 | N13: 2.375939886 | O13: 3.309910199 | P13: 1.698127841 | Q13: 1.626173272 | R13: 0.4677047021 | S13: 3.525773908 | T13: 4.725976128 | U13: 9.46634317 | V13: 2.649367251 | W13: 0 | X13: 0 | Y13: 0.8548202862 | Z13: 7.195456955 | AA13: 15.15938871 | AB13: 13.81239917 | AC13: 3.350204758 | AD13: 0.6447129431 | AE13: 1.571487799 | AF13: 12.77913155 | AG13: 18.81611994 | AH13: 15.11477688 | AI13: 3.957501325 | AJ13: 1.971555206 | AK13: 13.29720445 | AL13: 25.99574689 | AM13: 14.83127588 | AN13: 7.591207087 | AO13: 2.337084419 | AP13: 3.417842054 | AQ13: 7.903489919 | AR13: 9.482173175 | AS13: 23.84862253 | AT13: 3.318544748 | AU13: 2.925672798 | AV13: 0 | AW13: 0 | AX13: 2.702613632 | AY13: 22.36348022 | AZ13: 13.841181 | BA13: 2.829253675 | BB13: 1.870818808 | BC13: 3.367473855
A14: M | D14: 327 | E14: 1240 | F14: 1.7 | G14: 9.998724793 | H14: 17.37207252 | K14: 0 | L14: 0.3845252197 | M14: 0.2544313579 | N14: 3.885546756 | O14: 0.9210184902 | P14: 1.623295089 | Q14: 1.036145801 | R14: 0.5756365564 | S14: 3.885546756 | T14: 3.299548741 | U14: 10.43974459 | V14: 1.387284101 | W14: 0 | X14: 0.3845252197 | Y14: 0 | Z14: 8.31794824 | AA14: 8.268443496 | AB14: 15.69991144 | AC14: 4.706404485 | AD14: 0.5065601696 | AE14: 0.8104962714 | AF14: 13.53436671 | AG14: 16.20416906 | AH14: 12.20004118 | AI14: 2.684768899 | AJ14: 1.381527735 | AK14: 16.78786453 | AL14: 33.78756331 | AM14: 16.00269627 | AN14: 6.821293193 | AO14: 3.30645638 | AP14: 2.647928159 | AQ14: 11.01998624 | AR14: 7.577679628 | AS14: 25.05861057 | AT14: 2.369320066 | AU14: 2.38543789 | AV14: 0.6608307667 | AW14: 0 | AX14: 4.16070103 | AY14: 25.09775386 | AZ14: 6.57607202 | BA14: 2.166695998 | BB14: 2.014727947 | BC14: 1.542705971
A15: N | D15: 352 | E15: 1240 | F15: 2.14 | G15: 9.998724793 | H15: 21.86837364 | K15: 0 | L15: 0 | M15: 0.3210115263 | N15: 6.454069349 | O15: 0.4024076114 | P15: 0.1646212956 | Q15: 0 | R15: 0.4664270041 | S15: 4.641405972 | T15: 2.744602822 | U15: 9.399875977 | V15: 0.8679200527 | W15: 0.2249824373 | X15: 0 | Y15: 0.3493629717 | Z15: 11.957908 | AA15: 4.878277725 | AB15: 12.74534653 | AC15: 5.187399936 | AD15: 0 | AE15: 1.165152947 | AF15: 15.07748155 | AG15: 19.52591478 | AH15: 10.72233372 | AI15: 1.818150753 | AJ15: 1.648042081 | AK15: 25.67543473 | AL15: 39.17438097 | AM15: 18.9826645 | AN15: 5.327328037 | AO15: 4.014930486 | AP15: 0.6401939272 | AQ15: 13.07093087 | AR15: 4.834378713 | AS15: 34.06563343 | AT15: 3.746049037 | AU15: 1.465129531 | AV15: 0.2176659352 | AW15: 0 | AX15: 4.77035932 | AY15: 27.21738753 | AZ15: 3.235723021 | BA15: 1.051747166 | BB15: 0.8962714981 | BC15: 0.6822638138
A16: O | D16: 377 | E16: 1240 | F16: 1.27 | G16: 9.998724793 | H16: 12.97796006 | K16: 0.05547867284 | L16: 0.02773933642 | M16: 0 | N16: 6.034846745 | O16: 0.7551263803 | P16: 0.1849289095 | Q16: 0.4993080555 | R16: 0 | S16: 7.088941529 | T16: 2.687633484 | U16: 7.520442318 | V16: 0.5717385451 | W16: 0.6996477074 | X16: 0 | Y16: 0 | Z16: 13.02207737 | AA16: 5.41225275 | AB16: 12.08202208 | AC16: 4.681783558 | AD16: 0.1448609791 | AE16: 1.272927327 | AF16: 15.56484988 | AG16: 17.68382697 | AH16: 6.299911515 | AI16: 1.263680881 | AJ16: 1.177380724 | AK16: 30.34991619 | AL16: 31.00024952 | AM16: 11.16970613 | AN16: 2.465718793 | AO16: 3.476663498 | AP16: 0.6549565543 | AQ16: 10.56252288 | AR16: 2.703044226 | AS16: 34.65567763 | AT16: 2.052710895 | AU16: 0.5732796193 | AV16: 0 | AW16: 0.1140394942 | AX16: 4.059189562 | AY16: 22.43804101 | AZ16: 2.333186408 | BA16: 0.6626619255 | BB16: 0.7551263803 | BC16: 0.4838973131
A17: P | D17: 402 | E17: 1240 | F17: 1.03 | G17: 9.998724793 | H17: 10.52543217 | K17: 0.1368114845 | L17: 0.07980669927 | M17: 0.2413202573 | N17: 5.586468949 | O17: 1.330111655 | P17: 0 | Q17: 0.1026086134 | R17: 0 | S17: 7.030590174 | T17: 1.037487091 | U17: 5.073425882 | V17: 0.9025757656 | W17: 0.9158768821 | X17: 0.01520127605 | Y17: 0.3952331774 | Z17: 11.30594906 | AA17: 3.853523479 | AB17: 7.39352064 | AC17: 3.564699234 | AD17: 0.300225202 | AE17: 0.9918832624 | AF17: 14.13338641 | AG17: 17.7189874 | AH17: 3.336680093 | AI17: 0.146312282 | AJ17: 0.4066341344 | AK17: 28.33897888 | AL17: 14.90105085 | AM17: 7.133198787 | AN17: 0.4750398766 | AO17: 2.010368758 | AP17: 0.3800319013 | AQ17: 9.736417311 | AR17: 0.5909496065 | AS17: 31.97208386 | AT17: 1.721544513 | AU17: 0.5757483305 | AV17: 0.296424883 | AW17: 0.292624564 | AX17: 2.485408635 | AY17: 12.52205115 | AZ17: 0.9690813483 | BA17: 0.2242188218 | BB17: 0.03800319013 | BC17: 0
A18: Q | D18: 427 | E18: 1240 | F18: 2 | G18: 9.998724793 | H18: 20.43773237 | K18: 0 | L18: 0.2309453864 | M18: 0 | N18: 2.143094899 | O18: 0.107644036 | P18: 0.1467873219 | Q18: 0 | R18: 0.04892910729 | S18: 4.501477871 | T18: 0.8895311706 | U18: 4.526921007 | V18: 0.4198117406 | W18: 0 | X18: 0 | Y18: 0.09785821458 | Z18: 8.611522883 | AA18: 1.538331133 | AB18: 3.890842612 | AC18: 1.133198125 | AD18: 0 | AE18: 0.1585303076 | AF18: 7.458753116 | AG18: 10.7644036 | AH18: 1.096012003 | AI18: 0.140915829 | AJ18: 0.549963166 | AK18: 18.48933106 | AL18: 3.849742162 | AM18: 4.487777721 | AN18: 0.7828657167 | AO18: 1.773190848 | AP18: 0.02446455365 | AQ18: 3.704912004 | AR18: 0.3092319581 | AS18: 17.4950916 | AT18: 1.209527532 | AU18: 0.3865399476 | AV18: 0 | AW18: 0.1330871718 | AX18: 0.04305761442 | AY18: 2.162666542 | AZ18: 0.1526588148 | BA18: 0.1370015004 | BB18: 0.04892910729 | BC18: 0
A19: R | D19: 453 | E19: 1240 | F19: 1.43 | G19: 9.998724793 | H19: 14.61297865 | K19: 0 | L19: 0.09033065962 | M19: 0.05885179339 | N19: 0.4543905908 | O19: 0 | P19: 0 | Q19: 0 | R19: 0.05474585431 | S19: 0.7185393379 | T19: 0.2162461245 | U19: 3.156098501 | V19: 0.1519197457 | W19: 0 | X19: 0.1601316239 | Y19: 0 | Z19: 1.60815947 | AA19: 0.4188057855 | AB19: 0.6487383736 | AC19: 0.03832209802 | AD19: 0 | AE19: 0 | AF19: 0.7171706915 | AG19: 0.7869716558 | AH19: 0 | AI19: 0 | AJ19: 0.1669748557 | AK19: 4.327659783 | AL19: 0.3421615895 | AM19: 2.956276133 | AN19: 0.2052969537 | AO19: 0 | AP19: 0 | AQ19: 0.1505510994 | AR19: 0.1560256848 | AS19: 2.592216202 | AT19: 0.3448988822 | AU19: 0 | AV19: 0.1396019285 | AW19: 0.03832209802 | AX19: 0 | AY19: 0 | AZ19: 0 | BA19: 0 | BB19: 0.1231781722 | BC19: 0
A20: S | D20: 477 | E20: 1240 | F20: 2.03 | G20: 9.998724793 | H20: 20.74429836 | K20: 0 | L20: 0.05013425772 | M20: 0 | N20: 0.5427997518 | O20: 0 | P20: 0 | Q20: 0.1311203663 | R20: 0 | S20: 0.2892361022 | T20: 0 | U20: 2.707249917 | V20: 0 | W20: 0.03278009159 | X20: 0 | Y20: 0.09641203407 | Z20: 1.181047417 | AA20: 0.2198194377 | AB20: 0.2082499936 | AC20: 0.3412986006 | AD20: 0 | AE20: 0 | AF20: 0.5534050756 | AG20: 0.7471932641 | AH20: 0.004820601704 | AI20: 0.07905786794 | AJ20: 0 | AK20: 2.344740669 | AL20: 0.1291921257 | AM20: 3.119893423 | AN20: 0.1205150426 | AO20: 0.09448379339 | AP20: 0 | AQ20: 0 | AR20: 0.2477789276 | AS20: 0.829143493 | AT20: 0.02892361022 | AU20: 0.03567245261 | AV20: 0 | AW20: 0.001928240681 | AX20: 0.06941666453 | AY20: 0 | AZ20: 0.003856481363 | BA20: 0.02699536954 | BB20: 0.01928240681 | BC20: 0
A21: T

Sheet 9.5eV
A2: A | J2: M/Z | K2: 28 | L2: 30 | M2: 32 | N2: 42 | O2: 43 | P2: 44 | Q2: 45 | R2: 55 | S2: 56 | T2: 57 | U2: 58 | V2: 59 | W2: 60 | X2: 61 | Y2: 69 | Z2: 70 | AA2: 71 | AB2: 72 | AC2: 73 | AD2: 74 | AE2: 83 | AF2: 84 | AG2: 85 | AH2: 86 | AI2: 87 | AJ2: 97 | AK2: 98 | AL2: 99 | AM2: 100 | AN2: 101 | AO2: 110 | AP2: 111 | AQ2: 112 | AR2: 113 | AS2: 114 | AT2: 115 | AU2: 116 | AV2: 117 | AW2: 119 | AX2: 126 | AY2: 128 | AZ2: 129 | BA2: 130 | BB2: 144 | BC2: 146
A3: B | D3: Temperature(K) | E3: Wavelength(Å) | F3: Photon Indensity(nA) | G3: Energy(eV) | H3: Corrected PI(nA) | J3: Formula
A4: C | J4: Range | K4: 9455 | L4: 9766 | M4: 10069 | N4: 11446 | O4: 11571 | P4: 11697 | Q4: 11825 | R4: 13009 | S4: 13122 | T4: 13234 | U4: 13344 | V4: 13457 | W4: 13557 | X4: 13670 | Y4: 14501 | Z4: 14599 | AA4: 14700 | AB4: 14798 | AC4: 14896 | AD4: 14997 | AE4: 15848 | AF4: 15937 | AG4: 16026 | AH4: 16118 | AI4: 16209 | AJ4: 17084 | AK4: 17165 | AL4: 17247 | AM4: 17332 | AN4: 17416 | AO4: 18149 | AP4: 18225 | AQ4: 18306 | AR4: 18381 | AS4: 18465 | AT4: 18544 | AU4: 18617 | AV4: 18697 | AW4: 18854 | AX4: 19376 | AY4: 19530 | AZ4: 19605 | BA4: 19679 | BB4: 20674 | BC4: 20812
A5: D | K5: 9475 | L5: 9779 | M5: 10087 | N5: 11462 | O5: 11590 | P5: 11716 | Q5: 11840 | R5: 13023 | S5: 13146 | T5: 13254 | U5: 13361 | V5: 13469 | W5: 13578 | X5: 13680 | Y5: 14516 | Z5: 14623 | AA5: 14723 | AB5: 14818 | AC5: 14919 | AD5: 15008 | AE5: 15861 | AF5: 15954 | AG5: 16050 | AH5: 16136 | AI5: 16225 | AJ5: 17097 | AK5: 17188 | AL5: 17268 | AM5: 17359 | AN5: 17440 | AO5: 18174 | AP5: 18249 | AQ5: 18333 | AR5: 18411 | AS5: 18492 | AT5: 18567 | AU5: 18637 | AV5: 18720 | AW5: 18877 | AX5: 19407 | AY5: 19559 | AZ5: 19628 | BA5: 19700 | BB5: 20703 | BC5: 20839
A6: E | J6: Background Deduction
A7: F | D7: 227 | E7: 1305 | F7: 3.39 | G7: 9.500704018 | H7: 36.83027056 | K7: 0 | L7: 0.0238933895 | M7: 0 | N7: 0.0988317475 | O7: 0 | P7: 0.04887284217 | Q7: 0 | R7: 0 | S7: 0 | T7: 0 | U7: 0.04452858953 | V7: 0 | W7: 0.07602442115 | X7: 0 | Y7: 0.04778677901 | Z7: 0.1629094739 | AA7: 0.02823764214 | AB7: 0.07005107378 | AC7: 0 | AD7: 0 | AE7: 0.02715157898 | AF7: 0.01520488423 | AG7: 0 | AH7: 0.02715157898 | AI7: 0 | AJ7: 0 | AK7: 0 | AL7: 0.03040976846 | AM7: 0.1172948212 | AN7: 0.09503052644 | AO7: 0.08145473695 | AP7: 0.01357578949 | AQ7: 0 | AR7: 0 | AS7: 0 | AT7: 0.06842197904 | AU7: 0.1086063159 | AV7: 0 | AW7: 0.01737701055 | AX7: 0 | AY7: 0 | AZ7: 0.01411882107 | BA7: 0.04561465269 | BB7: 0 | BC7: 0
A8: G | D8: 247 | E8: 1305 | F8: 2.6 | G8: 9.500704018 | H8: 28.24740515 | K8: 0 | L8: 0.015576652 | M8: 0 | N8: 0.03540148183 | O8: 0 | P8: 0.02832118546 | Q8: 0.0368175411 | R8: 0 | S8: 0 | T8: 0 | U8: 0 | V8: 0.02619709655 | W8: 0 | X8: 0 | Y8: 0 | Z8: 0 | AA8: 0.1430219866 | AB8: 0 | AC8: 0 | AD8: 0 | AE8: 0.05097813383 | AF8: 0.009912414912 | AG8: 0.03540148183 | AH8: 0.008496355639 | AI8: 0 | AJ8: 0 | AK8: 0.01982482982 | AL8: 0 | AM8: 0.05381025238 | AN8: 0 | AO8: 0 | AP8: 0.01770074091 | AQ8: 0.03115330401 | AR8: 0.01345256309 | AS8: 0.08213143784 | AT8: 0.07221902293 | AU8: 0.1678030239 | AV8: 0 | AW8: 0.1076205048 | AX8: 0.03823360037 | AY8: 0 | AZ8: 0 | BA8: 0 | BB8: 0 | BC8: 0.05097813383
A9: H | D9: 267 | E9: 1305 | F9: 2.02 | G9: 9.500704018 | H9: 21.94606092 | K9: 0 | L9: 0.06561541978 | M9: 0 | N9: 0.0145812044 | O9: 0.1184722857 | P9: 0 | Q9: 0 | R9: 0 | S9: 0 | T9: 0 | U9: 0.02916240879 | V9: 0.04374361319 | W9: 0 | X9: 0.02551710769 | Y9: 0.1549252967 | Z9: 0 | AA9: 0.04738891429 | AB9: 0.007290602198 | AC9: 0.06926072088 | AD9: 0.00182265055 | AE9: 0 | AF9: 0 | AG9: 0 | AH9: 0 | AI9: 0.02916240879 | AJ9: 0.04556626374 | AK9: 0 | AL9: 0.0109359033 | AM9: 0.08019662418 | AN9: 0.02278313187 | AO9: 0.04374361319 | AP9: 0 | AQ9: 0 | AR9: 0.06288144396 | AS9: 0.4100963736 | AT9: 0.09113252748 | AU9: 0 | AV9: 0.00182265055 | AW9: 0 | AX9: 0 | AY9: 0.1549252967 | AZ9: 0 | BA9: 0 | BB9: 0 | BC9: 0
A10: I | D10: 277 | E10: 1305 | F10: 3.13 | G10: 9.500704018 | H10: 34.00553004 | K10: 0.07763443171 | L10: 0 | M10: 0.07998699025 | N10: 0.009410234147 | O10: 0.1352721159 | P10: 0 | Q10: 0 | R10: 0.07645815244 | S10: 0.1911453811 | T10: 0 | U10: 0 | V10: 0.06940047683 | W10: 0.09880745854 | X10: 0.004116977439 | Y10: 0.04352233293 | Z10: 0 | AA10: 1.139814611 | AB10: 0.03117140061 | AC10: 0.1223330439 | AD10: 0.127038161 | AE10: 0.09880745854 | AF10: 0.6563638318 | AG10: 0.7939885062 | AH10: 0.6051956836 | AI10: 0.1264500214 | AJ10: 0.1905572415 | AK10: 0.5951973098 | AL10: 0.33759215 | AM10: 0.6163703366 | AN10: 0.4852151982 | AO10: 0.1870284037 | AP10: 0.2793663262 | AQ10: 1.482111878 | AR10: 0.4575726354 | AS10: 2.599577183 | AT10: 0.1352721159 | AU10: 0.04822745 | AV10: 0.1188042061 | AW10: 0 | AX10: 0.1411535122 | AY10: 2.58781439 | AZ10: 1.459762572 | BA10: 0.1317432781 | BB10: 0 | BC10: 0.8292768842
A11: J | D11: 287 | E11: 1305 | F11: 2.53 | G11: 9.500704018 | H11: 27.48689809 | K11: 0 | L11: 0.04511240214 | M11: 0.01600762657 | N11: 0 | O11: 0.1746286534 | P11: 0 | Q11: 0 | R11: 0.03638096947 | S11: 0.3638096947 | T11: 0.5464421614 | U11: 0.5107888113 | V11: 0.03056001435 | W11: 0.1280610125 | X11: 0.04584002153 | Y11: 0.05238859603 | Z11: 0.818571813 | AA11: 1.431954958 | AB11: 0.2459353536 | AC11: 0.4656764092 | AD11: 0 | AE11: 0.2313829658 | AF11: 2.374949687 | AG11: 1.309714901 | AH11: 1.71572652 | AI11: 0.371813508 | AJ11: 0.3230630089 | AK11: 2.41860685 | AL11: 1.148183396 | AM11: 1.32281205 | AN11: 0.1091429084 | AO11: 0.5224307215 | AP11: 0.6366669657 | AQ11: 2.689281263 | AR11: 1.570930262 | AS11: 7.922319911 | AT11: 0.4147430519 | AU11: 0.147706736 | AV11: 0.0887695655 | AW11: 0.02619429802 | AX11: 0.7072460464 | AY11: 5.551735941 | AZ11: 3.868024674 | BA11: 0.5442593032 | BB11: 0.7858289405 | BC11: 1.510537852
A12: K | D12: 302 | E12: 1305 | F12: 3.08 | G12: 9.500704018 | H12: 33.46231071 | K12: 0 | L12: 0.04183811489 | M12: 0.04482655166 | N12: 0.003586124133 | O12: 0.2510286893 | P12: 0.1733293331 | Q12: 0 | R12: 0 | S12: 0.5976873555 | T12: 0.2952575536 | U12: 0.1291004688 | V12: 0.06694098382 | W12: 0.1637663354 | X12: 0.0914461654 | Y12: 0.3263372961 | Z12: 0.7919357461 | AA12: 2.216224714 | AB12: 0.4727706982 | AC12: 0.6466977187 | AD12: 0 | AE12: 0.1004114757 | AF12: 4.376266817 | AG12: 2.301096319 | AH12: 2.338152935 | AI12: 0.1201351585 | AJ12: 0.1805015814 | AK12: 6.046205289 | AL12: 2.937035665 | AM12: 2.366841928 | AN12: 0.4183811489 | AO12: 1.657984724 | AP12: 0.6126295394 | AQ12: 4.165880868 | AR12: 1.51872357 | AS12: 15.17169583 | AT12: 1.151145847 | AU12: 0.4094158385 | AV12: 0.1362727171 | AW12: 0 | AX12: 1.721339584 | AY12: 9.86781824 | AZ12: 3.403231802 | BA12: 0.2510286893 | BB12: 0.6634329646 | BC12: 1.495413764
A13: L | D13: 312 | E13: 1305 | F13: 1.9 | G13: 9.500704018 | H13: 20.64233453 | K13: 0 | L13: 0.1259547459 | M13: 0 | N13: 0.1724611136 | O13: 0.9107497009 | P13: 0.09688826605 | Q13: 0 | R13: 0.02422206651 | S13: 0.4117751307 | T13: 0.9117185836 | U13: 0.8196747308 | V13: 0.4912235089 | W13: 0.2441584305 | X13: 0 | Y13: 0.151145695 | Z13: 1.574434323 | AA13: 3.883281703 | AB13: 0.5038189835 | AC13: 1.864130239 | AD13: 0 | AE13: 0.2131541853 | AF13: 5.478062563 | AG13: 3.923974775 | AH13: 3.056824794 | AI13: 0.09785714871 | AJ13: 0.319731278 | AK13: 9.59581387 | AL13: 5.997383669 | AM13: 3.708882825 | AN13: 1.719766722 | AO13: 1.391315501 | AP13: 0.7993281949 | AQ13: 6.408189917 | AR13: 2.88048815 | AS13: 25.62500861 | AT13: 1.621909574 | AU13: 0.205403124 | AV13: 0.4514993198 | AW13: 0 | AX13: 2.966718707 | AY13: 16.06407451 | AZ13: 6.877129124 | BA13: 1.499830359 | BB13: 1.346746898 | BC13: 1.90094778
A14: M | D14: 327 | E14: 1305 | F14: 2.37 | G14: 9.500704018 | H14: 25.74859623 | K14: 0 | L14: 0 | M14: 0.05670212026 | N14: 0.2648688083 | O14: 0.3184639631 | P14: 0.4349751691 | Q14: 0.06679975811 | R14: 0 | S14: 0.9515081824 | T14: 0.7200392532 | U14: 0 | V14: 0.1110740164 | W14: 0 | X14: 0 | Y14: 0 | Z14: 0.6602301674 | AA14: 2.157787535 | AB14: 0.5289608753 | AC14: 1.213270025 | AD14: 0.2780734117 | AE14: 0.1196181715 | AF14: 6.897463396 | AG14: 3.126384028 | AH14: 1.899132658 | AI14: 0.2462270154 | AJ14: 0.386817204 | AK14: 11.22857329 | AL14: 6.105187195 | AM14: 3.877492936 | AN14: 1.339878869 | AO14: 2.564800015 | AP14: 0.05825560301 | AQ14: 8.44939266 | AR14: 0.555370082 | AS14: 24.20792164 | AT14: 3.498443146 | AU14: 0.871503821 | AV14: 0.07767413734 | AW14: 0.08544155108 | AX14: 3.189300079 | AY14: 19.35639503 | AZ14: 3.47824787 | BA14: 1.138702853 | BB14: 1.778737745 | BC14: 0.4505099966
A15: N | D15: 352 | E15: 1305 | F15: 2.94 | G15: 9.500704018 | H15: 31.94129659 | K15: 0 | L15: 0.02755054096 | M15: 0 | N15: 0.2830191935 | O15: 0.150275678 | P15: 0.3130743291 | Q15: 0 | R15: 0.1283604749 | S15: 1.690601377 | T15: 0.5547677111 | U15: 0.4646023044 | V15: 0.2611039905 | W15: 0.1715647323 | X15: 0 | Y15: 0.1014360826 | Z15: 1.50275678 | AA15: 0.7789289308 | AB15: 0.6837543347 | AC15: 1.159627315 | AD15: 0 | AE15: 0.3030559506 | AF15: 9.265747844 | AG15: 3.255973022 | AH15: 2.46389497 | AI15: 0.2341795982 | AJ15: 0.5672906843 | AK15: 18.8044965 | AL15: 6.79872213 | AM15: 4.656041422 | AN15: 1.111413868 | AO15: 2.919105044 | AP15: 0.5322263594 | AQ15: 10.32644367 | AR15: 1.957966854 | AS15: 33.68805011 | AT15: 1.868427596 | AU15: 0.1746954756 | AV15: 0.4383040607 | AW15: 0 | AX15: 2.709971393 | AY15: 20.15572531 | AZ15: 1.741945567 | BA15: 0.8315254181 | BB15: 0.5697952789 | BC15: 0.2416933821
A16: O | D16: 377 | E16: 1305 | F16: 1.76 | G16: 9.500704018 | H16: 19.12132041 | K16: 0.1443414964 | L16: 0.01673524595 | M16: 0 | N16: 0 | O16: 0.4811383212 | P16: 0.3974620914 | Q16: 0 | R16: 0.1621226952 | S16: 2.379542784 | T16: 0.6976505657 | U16: 0.171536271 | V16: 0.3378427777 | W16: 0 | X16: 0.3577158823 | Y16: 0.2280177261 | Z16: 1.778119883 | AA16: 1.117077667 | AB16: 0.2405691606 | AC16: 2.200684843 | AD16: 0.1255143447 | AE16: 0 | AF16: 9.139536197 | AG16: 5.491252579 | AH16: 1.888990887 | AI16: 0.1422495906 | AJ16: 0.07949241828 | AK16: 19.94422937 | AL16: 6.599962623 | AM16: 3.489298782 | AN16: 0 | AO16: 1.698627464 | AP16: 0.1568929308 | AQ16: 8.953356586 | AR16: 1.044906919 | AS16: 36.24226702 | AT16: 2.665087918 | AU16: 0 | AV16: 0 | AW16: 0.2803153697 | AX16: 2.583503594 | AY16: 18.54474442 | AZ16: 1.035493343 | BA16: 0.1840877055 | BB16: 0.1045952872 | BC16: 0
A17: P | D17: 402 | E17: 1305 | F17: 1.44 | G17: 9.500704018 | H17: 15.6447167 | K17: 0.09204385275 | L17: 0.07925998431 | M17: 0 | N17: 0 | O17: 0.06391934219 | P17: 0 | Q17: 0.01278386844 | R17: 0.04474353953 | S17: 1.885620595 | T17: 0.2633476898 | U17: 0.3119263899 | V17: 0.04602192638 | W17: 0.03323805794 | X17: 0 | Y17: 0 | Z17: 1.853660923 | AA17: 0.3732889584 | AB17: 0.1700254502 | AC17: 1.493155834 | AD17: 0 | AE17: 0.02301096319 | AF17: 8.429682848 | AG17: 3.962999216 | AH17: 1.076401722 | AI17: 0.9025411117 | AJ17: 0.3553915426 | AK17: 24.7009906 | AL17: 3.561585747 | AM17: 1.436906812 | AN17: 0 | AO17: 2.756202035 | AP17: 0 | AQ17: 8.434796395 | AR17: 1.080236883 | AS17: 31.05457321 | AT17: 2.702509788 | AU17: 0.1022709475 | AV17: 0.04857870006 | AW17: 0.07414643694 | AX17: 0.8872004696 | AY17: 8.514056379 | AZ17: 0.3962999216 | BA17: 0.2019851213 | BB17: 0 | BC17: 0
A18: Q | D18: 427 | E18: 1305 | F18: 2.77 | G18: 9.500704018 | H18: 30.09435087 | K18: 0 | L18: 0.01329153108 | M18: 0.05914731332 | N18: 0 | O18: 0 | P18: 0 | Q18: 0 | R18: 0 | S18: 0.6147333126 | T18: 0 | U18: 0 | V18: 0 | W18: 0 | X18: 0 | Y18: 0.08373664582 | Z18: 0.7642630373 | AA18: 0.6552724824 | AB18: 0.01661441385 | AC18: 0.6964762288 | AD18: 0.09171156447 | AE18: 0 | AF18: 5.010907218 | AG18: 2.475547664 | AH18: 0.4678618941 | AI18: 0.1834231289 | AJ18: 0.1980438131 | AK18: 15.20551156 | AL18: 1.879422495 | AM18: 0.5130530998 | AN18: 0 | AO18: 0.687172157 | AP18: 0.116300897 | AQ18: 2.131961586 | AR18: 0.3269716646 | AS18: 18.81682055 | AT18: 1.472701644 | AU18: 0.02525390906 | AV18: 0 | AW18: 0.1568400668 | AX18: 0.2379184064 | AY18: 2.119999208 | AZ18: 0.1036739424 | BA18: 0.03057052149 | BB18: 0 | BC18: 0
A19: R | D19: 453 | E19: 1305 | F19: 1.99 | G19: 9.500704018 | H19: 21.62012932 | K19: 0 | L19: 0 | M19: 0.004625319234 | N19: 0.09158132083 | O19: 0.0277519154 | P19: 0 | Q19: 0 | R19: 0.01850127693 | S19: 0.1618861732 | T19: 0.1850127693 | U19: 0 | V19: 0 | W19: 0 | X19: 0 | Y19: 0.003700255387 | Z19: 0.3006457502 | AA19: 0.04810332003 | AB19: 0.1461600878 | AC19: 0.07400510774 | AD19: 0.03700255387 | AE19: 0.01480102155 | AF19: 0.7067487789 | AG19: 0.2543925579 | AH19: 0 | AI19: 0 | AJ19: 0.04070280926 | AK19: 2.852896903 | AL19: 0.3607749002 | AM19: 0.1480102155 | AN19: 0 | AO19: 0 | AP19: 0 | AQ19: 0 | AR19: 0 | AS19: 2.649382857 | AT19: 0.3755759218 | AU19: 0 | AV19: 0 | AW19: 0 | AX19: 0.1295089385 | AY19: 0.09250638467 | AZ19: 0 | BA19: 0 | BB19: 0 | BC19: 0
A20: S | D20: 477 | E20: 1305 | F20: 2.8 | G20: 9.500704018 | H20: 30.42028247 | K20: 0 | L20: 0.014464034 | M20: 0 | N20: 0 | O20: 0.01972368273 | P20: 0 | Q20: 0.14464034 | R20: 0.05588376774 | S20: 0.08218201138 | T20: 0.005259648729 | U20: 0 | V20: 0.03747499719 | W20: 0 | X20: 0 | Y20: 0.014464034 | Z20: 0.1643640228 | AA20: 0.0512815751 | AB20: 0 | AC20: 0 | AD20: 0.01972368273 | AE20: 0 | AF20: 0.5088710145 | AG20: 0.08218201138 | AH20: 0.05982850429 | AI20: 0 | AJ20: 0.06180087256 | AK20: 1.057189394 | AL20: 0.02629824364 | AM20: 0.3208385724 | AN20: 0.1150548159 | AO20: 0.1117675355 | AP20: 0 | AQ20: 0.1420105157 | AR20: 0 | AS20: 1.091377111 | AT20: 0.3155789237 | AU20: 0.0519390312 | AV20: 0 | AW20: 0 | AX20: 0 | AY20: 0 | AZ20: 0 | BA20: 0 | BB20: 0 | BC20: 0
A21: T

Sheet 16.6eV
A2: A | J2: M/Z | K2: 15 | L2: 18 | M2: 27 | N2: 28 | O2: 29 | P2: 30 | Q2: 31 | R2: 32 | S2: 36 | T2: 38 | U2: 40 | V2: 41 | W2: 42 | X2: 43 | Y2: 44 | Z2: 55 | AA2: 56 | AB2: 57 | AC2: 58 | AD2: 69 | AE2: 70 | AF2: 71 | AG2: 72 | AH2: 83 | AI2: 84 | AJ2: 85 | AK2: 86 | AL2: 87 | AM2: 97 | AN2: 98 | AO2: 99 | AP2: 100 | AQ2: 101 | AR2: 114 | AS2: 128 | AT2: 129
A3: B | D3: Temperature(K) | E3: Wavelength(Å) | F3: Photon Indensity(nA) | G3: Energy(eV) | H3: Corrected PI(nA) | J3: Formula | L3: 950 | N3: 950 | O3: 950 | P3: 950 | Q3: 950 | R3: 950 | V3: 950 | W3: 950 | X3: 950 | Y3: 950 | Z3: 950 | AA3: 950 | AB3: 950 | AC3: 950 | AD3: 950 | AE3: 950 | AF3: 950 | AG3: 950 | AH3: 950 | AI3: 950 | AJ3: 950 | AK3: 950 | AL3: 950 | AM3: 950 | AN3: 950 | AO3: 950 | AP3: 950 | AQ3: 950 | AR3: 950 | AS3: 950 | AT3: 950
A4: C | J4: Range | K4: 6598 | L4: 7215 | M4: 8812 | N4: 8967 | O4: 9123 | P4: 9281 | Q4: 9433 | R4: 9575 | S4: 10147 | T4: 10422 | U4: 10682 | V4: 10828 | W4: 10959 | X4: 11088 | Y4: 11216 | Z4: 12523 | AA4: 12637 | AB4: 12749 | AC4: 12861 | AD4: 14019 | AE4: 14115 | AF4: 14215 | AG4: 14316 | AH4: 15361 | AI4: 15454 | AJ4: 15542 | AK4: 15635 | AL4: 15712 | AM4: 16599 | AN4: 16680 | AO4: 16764 | AP4: 16849 | AQ4: 16936 | AR4: 17983 | AS4: 19045 | AT4: 19115
A5: D | K5: 6610 | L5: 7226 | M5: 8826 | N5: 8987 | O5: 9145 | P5: 9296 | Q5: 9445 | R5: 9590 | S5: 10161 | T5: 10435 | U5: 10713 | V5: 10850 | W5: 10977 | X5: 11108 | Y5: 11235 | Z5: 12546 | AA5: 12657 | AB5: 12769 | AC5: 12878 | AD5: 14033 | AE5: 14137 | AF5: 14237 | AG5: 14337 | AH5: 15381 | AI5: 15474 | AJ5: 15566 | AK5: 15653 | AL5: 15740 | AM5: 16615 | AN5: 16700 | AO5: 16782 | AP5: 16873 | AQ5: 16955 | AR5: 18000 | AS5: 19067 | AT5: 19142
A6: E | J6: Background Deduction
A7: F | D7: 227 | E7: 745 | F7: 4.63 | G7: 16.64217281 | H7: 14.78156606 | K7: 0 | L7: 13.97957423 | M7: 2.503117724 | N7: 3.20263765 | O7: 65.04588187 | P7: 1.669647174 | Q7: 0.04059109823 | R7: 531.1182839 | S7: 68.39600051 | T7: 10.34261183 | U7: 21298.61739 | V7: 136.9151274 | W7: 73.35893879 | X7: 461.0512831 | Y7: 17.02120052 | Z7: 37.41687435 | AA7: 127.6671221 | AB7: 192.3869222 | AC7: 9.974585871 | AD7: 2.016024545 | AE7: 93.72755188 | AF7: 176.3547914 | AG7: 9.795985039 | AH7: 2.420582491 | AI7: 1.312445509 | AJ7: 9.538908083 | AK7: 0.5452737529 | AL7: 0 | AM7: 0.05953361073 | AN7: 0.5385085698 | AO7: 0.4519142269 | AP7: 91.60057833 | AQ7: 10.28307822 | AR7: 0.6467514984 | AS7: 0 | AT7: 0.0893004161
A8: H | D8: 247 | E8: 745 | F8: 3.83 | G8: 16.64217281 | H8: 12.22751577 | K8: 0.3058675262 | L8: 14.87464857 | M8: 3.025962157 | N8: 2.775706909 | O8: 71.03159924 | P8: 1.069718514 | Q8: 0.3582084932 | R8: 513.9490406 | S8: 65.68791364 | T8: 10.9654326 | U8: 20848.50961 | V8: 139.2776776 | W8: 74.66275383 | X8: 473.7135579 | Y8: 17.40337154 | Z8: 45.31092091 | AA8: 131.3938195 | AB8: 207.0150673 | AC8: 10.0592796 | AD8: 2.535265591 | AE8: 96.00314749 | AF8: 180.1396164 | AG8: 7.245952625 | AH8: 1.267632796 | AI8: 1.26272583 | AJ8: 8.13738472 | AK8: 0 | AL8: 0.5005104974 | AM8: 0.2911466292 | AN8: 0.7066030551 | AO8: 0 | AP8: 91.14688714 | AQ8: 6.853395372 | AR8: 0.4972391869 | AS8: 0.1014106236 | AT8: 0
A9: J | D9: 267 | E9: 745 | F9: 3.27 | G9: 16.64217281 | H9: 10.43968057 | K9: 0.2375551612 | L9: 16.17290864 | M9: 2.864072306 | N9: 4.488643086 | O9: 70.08068832 | P9: 0.4636157178 | Q9: 0.6762659025 | R9: 494.8733792 | S9: 60.99803494 | T9: 10.43710095 | U9: 20185.28045 | V9: 143.9622592 | W9: 83.25925247 | X9: 476.0471327 | Y9: 22.41447892 | Z9: 40.28858903 | AA9: 133.5040848 | AB9: 189.8084896 | AC9: 7.609428228 | AD9: 3.247225792 | AE9: 94.38794546 | AF9: 167.8365529 | AG9: 9.184189055 | AH9: 0.8601795757 | AI9: 0.973209854 | AJ9: 10.53672086 | AK9: 0.2126501846 | AL9: 0 | AM9: 0.8850845522 | AN9: 0.08237799945 | AO9: 0.06513609259 | AP9: 99.38043538 | AQ9: 6.686028327 | AR9: 0.1800821383 | AS9: 0.2509655332 | AT9: 0.2758705098
A10: K | D10: 277 | E10: 745 | F10: 3.01 | G10: 16.64217281 | H10: 9.609614222 | K10: 1.117630714 | L10: 20.30050276 | M10: 3.517310812 | N10: 2.412167592 | O10: 67.21601774 | P10: 1.207124421 | Q10: 2.014649033 | R10: 481.1972565 | S10: 60.40825225 | T10: 14.96834282 | U10: 19544.43494 | V10: 137.5559902 | W10: 69.7967665 | X10: 424.1814401 | Y10: 16.44186711 | Z10: 43.89354143 | AA10: 116.4750191 | AB10: 184.5443489 | AC10: 9.711107839 | AD10: 3.371623382 | AE10: 82.52776664 | AF10: 168.664419 | AG10: 7.600721352 | AH10: 1.019812011 | AI10: 1.302861875 | AJ10: 12.59155646 | AK10: 1.232099409 | AL10: 0.4786872702 | AM10: 0.3017811051 | AN10: 1.79195539 | AO10: 0.9178308095 | AP10: 86.11167742 | AQ10: 5.161497523 | AR10: 0.6784871743 | AS10: 0.3288373422 | AT10: 0.3912748122
A11: L | D11: 287 | E11: 745 | F11: 2.89 | G11: 16.64217281 | H11: 9.226506678 | K11: 2.299895371 | L11: 20.92232811 | M11: 5.039827274 | N11: 7.456776698 | O11: 73.5142805 | P11: 3.59832829 | Q11: 2.971872341 | R11: 442.8891825 | S11: 54.43013456 | T11: 9.988612507 | U11: 19288.4096 | V11: 124.9552014 | W11: 64.93031663 | X11: 433.0349654 | Y11: 21.32984962 | Z11: 44.22041995 | AA11: 108.691191 | AB11: 185.6195481 | AC11: 10.82966755 | AD11: 5.06150395 | AE11: 73.68335858 | AF11: 162.4190013 | AG11: 12.65050837 | AH11: 2.544841815 | AI11: 1.395977963 | AJ11: 17.44972454 | AK11: 2.692243215 | AL11: 1.211726213 | AM11: 1.072995484 | AN11: 1.23340289 | AO11: 2.932854323 | AP11: 73.91746668 | AQ11: 6.416296228 | AR11: 0.5375815759 | AS11: 0.6004439376 | AT11: 1.72112811
A12: M | D12: 302 | E12: 745 | F12: 2.43 | G12: 16.64217281 | H12: 7.757927761 | K12: 2.80229472 | L12: 26.31114987 | M12: 7.940264707 | N12: 11.85625889 | O12: 69.56239045 | P12: 3.366878477 | Q12: 3.77935976 | R12: 367.7940924 | S12: 48.22164005 | T12: 10.14703957 | U12: 16444.22634 | V12: 96.91505557 | W12: 44.25924172 | X12: 337.2421194 | Y12: 14.25638436 | Z12: 38.70105642 | AA12: 74.60239614 | AB12: 146.4927278 | AC12: 15.59179252 | AD12: 5.581387367 | AE12: 57.90721619 | AF12: 114.0304508 | AG12: 8.852879547 | AH12: 2.155214706 | AI12: 2.608944118 | AJ12: 18.56165776 | AK12: 2.273803075 | AL12: 1.170415642 | AM12: 1.191039706 | AN12: 1.554538837 | AO12: 3.248290108 | AP12: 48.07984961 | AQ12: 3.660771391 | AR12: 1.799449599 | AS12: 1.508134693 | AT12: 1.386968316
A13: N | D13: 312 | E13: 745 | F13: 2.33 | G13: 16.64217281 | H13: 7.438671474 | K13: 4.904101509 | L13: 34.42550204 | M13: 7.393793393 | N13: 16.01630082 | O13: 74.29552467 | P13: 4.882592292 | Q13: 6.087108452 | R13: 352.1327712 | S13: 47.03796924 | T13: 8.447745033 | U13: 16194.5477 | V13: 85.71154167 | W13: 47.64829328 | X13: 320.2776206 | Y13: 7.931523822 | Z13: 38.36706608 | AA13: 73.90567011 | AB13: 132.6661627 | AC13: 14.21759253 | AD13: 6.533424707 | AE13: 46.70188772 | AF13: 105.4166732 | AG13: 7.280870003 | AH13: 3.635057697 | AI13: 1.532531721 | AJ13: 25.67662797 | AK13: 3.831329304 | AL13: 0.2016489107 | AM13: 1.333571463 | AN13: 0.7877750779 | AO13: 5.492916328 | AP13: 41.27081039 | AQ13: 2.984403879 | AR13: 1.511022504 | AS13: 1.35508068 | AT13: 2.419786929
A14: O | D14: 327 | E14: 745 | F14: 2.23 | G14: 16.64217281 | H14: 7.119415188 | K14: 6.382546712 | L14: 43.41929665 | M14: 12.69767216 | N14: 26.36733426 | O14: 74.39656011 | P14: 7.337681343 | Q14: 10.56547455 | R14: 330.5327668 | S14: 48.62758961 | T14: 9.090634314 | U14: 15855.6675 | V14: 91.99351109 | W14: 47.78482376 | X14: 312.1436159 | Y14: 15.47879946 | Z14: 40.13250983 | AA14: 65.59246619 | AB14: 122.2459959 | AC14: 13.10219976 | AD14: 5.421793642 | AE14: 51.89752111 | AF14: 97.87039829 | AG14: 9.388411581 | AH14: 1.668676385 | AI14: 1.24729346 | AJ14: 26.89827675 | AK14: 3.267122283 | AL14: 1.823183458 | AM14: 1.910269262 | AN14: 1.702387019 | AO14: 6.556718321 | AP14: 38.13515476 | AQ14: 4.24192145 | AR14: 2.966535796 | AS14: 1.286622533 | AT14: 1.775426726
A15: P | D15: 352 | E15: 745 | F15: 2.01 | G15: 16.64217281 | H15: 6.417051358 | K15: 7.785507271 | L15: 48.88226422 | M15: 13.97838275 | N15: 31.90250297 | O15: 76.71436187 | P15: 8.583381514 | Q15: 10.88038666 | R15: 322.5780635 | S15: 42.18448395 | T15: 7.423970504 | U15: 15454.8989 | V15: 80.60088211 | W15: 36.47781309 | X15: 237.0434511 | Y15: 24.52839961 | Z15: 41.07182338 | AA15: 61.34593259 | AB15: 101.0090093 | AC15: 10.30379785 | AD15: 5.485385427 | AE15: 35.90122428 | AF15: 78.62489668 | AG15: 5.485385427 | AH15: 3.777435873 | AI15: 2.63672504 | AJ15: 23.06355236 | AK15: 2.162987208 | AL15: 1.128244048 | AM15: 1.181227885 | AN15: 1.658082413 | AO15: 8.112760378 | AP15: 30.23195377 | AQ15: 4.11403907 | AR15: 1.589515095 | AS15: 2.674125396 | AT15: 1.62691545
A16: Q | D16: 377 | E16: 745 | F16: 1.94 | G16: 16.64217281 | H16: 6.193571957 | K16: 8.634758806 | L16: 39.84776502 | M16: 9.671317362 | N16: 30.66404997 | O16: 60.91476818 | P16: 6.148309935 | Q16: 5.315188106 | R16: 315.2235921 | S16: 40.99411483 | T16: 8.71871682 | U16: 14871.78007 | V16: 67.46349326 | W16: 42.31483897 | X16: 215.384597 | Y16: 17.4051421 | Z16: 39.47964142 | AA16: 62.04174306 | AB16: 93.91349677 | AC16: 12.01245429 | AD16: 6.4906003 | AE16: 42.33421389 | AF16: 68.70348854 | AG16: 7.000806691 | AH16: 2.622073355 | AI16: 3.054780041 | AJ16: 24.21865783 | AK16: 3.093529894 | AL16: 0.4908314654 | AM16: 1.285203442 | AN16: 1.60811888 | AO16: 8.489446859 | AP16: 28.82020282 | AQ16: 3.035405115 | AR16: 2.33790777 | AS16: 0.8331218295 | AT16: 0.4456233041
A17: R | D17: 402 | E17: 745 | F17: 1.78 | G17: 16.64217281 | H17: 5.682761899 | K17: 3.1217215 | L17: 27.98639162 | M17: 12.49392483 | N17: 15.38688433 | O17: 55.46246801 | P17: 5.940773272 | Q17: 5.789438408 | R17: 306.343998 | S17: 42.90167428 | T17: 10.16407181 | U17: 14008.10406 | V17: 93.51790722 | W17: 57.72545214 | X17: 228.2446499 | Y17: 19.53275572 | Z17: 42.22594652 | AA17: 67.25602916 | AB17: 98.99763707 | AC17: 9.903635064 | AD17: 8.041864293 | AE17: 41.52558284 | AF17: 84.23368927 | AG17: 7.123296862 | AH17: 3.227303964 | AI17: 0 | AJ17: 24.54792273 | AK17: 0.4891987469 | AL17: 0.5067958242 | AM17: 0.9889557402 | AN17: 1.428882671 | AO17: 3.470143629 | AP17: 37.30580372 | AQ17: 2.322814194 | AR17: 1.682280583 | AS17: 1.150848851 | AT17: 0.3308250519
A18: S | D18: 427 | E18: 745 | F18: 1.72 | G18: 16.64217281 | H18: 5.491208127 | K18: 0.6810887356 | L18: 21.76570205 | M18: 3.915349683 | N18: 7.805204066 | O18: 46.35774025 | P18: 2.265439538 | Q18: 2.418411339 | R18: 311.1155069 | S18: 42.90494816 | T18: 6.373825066 | U18: 13892.07589 | V18: 81.78528106 | W18: 43.18903864 | X18: 257.6737154 | Y18: 1.165499441 | Z18: 31.38835681 | AA18: 73.61585842 | AB18: 108.5407776 | AC18: 6.767181127 | AD18: 4.498099403 | AE18: 59.26200437 | AF18: 97.03875499 | AG18: 7.583030735 | AH18: 0.1857514733 | AI18: 1.748249161 | AJ18: 17.30038232 | AK18: 1.034380754 | AL18: 0.6592356211 | AM18: 1.755533532 | AN18: 1.755533532 | AO18: 1.744606975 | AP18: 46.52892298 | AQ18: 4.516310332 | AR18: 1.908505334 | AS18: 0.2950170459 | AT18: 0.3642185752
A19: T | D19: 453 | E19: 745 | F19: 1.56 | G19: 16.64217281 | H19: 4.980398069 | K19: 1.554092643 | L19: 17.87808901 | M19: 4.136215563 | N19: 3.851097791 | O19: 47.40584924 | P19: 2.136375417 | Q19: 0.2851177718 | R19: 302.6986958 | S19: 40.9605813 | T19: 8.42502937 | U19: 13869.87125 | V19: 75.56825676 | W19: 46.4460866 | X19: 261.276304 | Y19: 23.05036634 | Z19: 35.21003695 | AA19: 74.64463581 | AB19: 118.3037966 | AC19: 8.119832881 | AD19: 4.457475024 | AE19: 60.92284107 | AF19: 87.07737695 | AG19: 8.352745991 | AH19: 0.9155894644 | AI19: 1.97976143 | AJ19: 12.95077203 | AK19: 0.5862985167 | AL19: 0.8754320317 | AM19: 0.4577947322 | AN19: 1.501887981 | AO19: 0.9477154105 | AP19: 44.37396308 | AQ19: 4.136215563 | AR19: 1.501887981 | AS19: 0 | AT19: 0.4015743265
A20: U
A21: V
A22: W
A23: X
A24: Y
A25: Z
A26: AA
A27: AB
A28: AC
A29: AD
A30: AE
A31: AF
A32: AG
A33: AH
A34: AI
A35: AJ
A36: AK
A37: AL
A38: AM
A39: AN
A40: AO
A41: AP
A42: AQ
A43: AR
A44: AS
A45: AT
A46: AU
A47: AV
A48: AW
A49: AX
A50: AY
A51: AZ
A52: BA
A53: BB
A54: BC
A55: BD
A56: BE
A57: BF
A58: BG
A59: BH
A60: BI
A61: BJ
A62: BK
A63: BL
A64: BM
A65: BN
A66: BO
A67: BP
A68: BQ
A69: BR
A70: BS
A71: BT
A72: BU
A73: BV
A74: BW
A75: BX
A76: BY
A77: BZ
A78: CA
A79: CB
A80: CC
A81: CD
A82: CE
A83: CF
A84: CG
A85: CH
A86: CI
A87: CJ
A88: CK
A89: CL
A90: CM
A91: CN
A92: CO
A93: CP
A94: CQ
A95: CR
A96: CS
A97: CT
A98: CU
A99: CV
A100: CW
A101: CX
A102: CY
A103: CZ
A104: DA
A105: DB
A106: DC
A107: DD
A108: DE
A109: DF
A110: DG
A111: DH
A112: DI
A113: DJ
A114: DK
A115: DL
A116: DM
A117: DN
A118: DO
A119: DP
A120: DQ
A121: DR
A122: DS
A123: DT
A124: DU
A125: DV
A126: DW
A127: DX
A128: DY
A129: DZ
A130: EA
A131: EB
A132: EC
A133: ED
A134: EE
A135: EF
A136: EG
A137: EH
A138: EI
A139: EJ
A140: EK
A141: EL
A142: EM
A143: EN
A144: EO
A145: EP
A146: EQ
A147: ER
A148: ES
A149: ET
A150: EU
A151: EV
A152: EW
A153: EX
A154: EY

Sheet 13eV
A2: A | J2: M/Z | K2: 15 | L2: 18 | M2: 27 | N2: 28 | O2: 29 | P2: 30 | Q2: 31 | R2: 32 | S2: 36 | T2: 38 | U2: 40 | V2: 41 | W2: 42 | X2: 43 | Y2: 44 | Z2: 55 | AA2: 56 | AB2: 57 | AC2: 58 | AD2: 69 | AE2: 70 | AF2: 71 | AG2: 72 | AH2: 83 | AI2: 84 | AJ2: 85 | AK2: 86 | AL2: 87 | AM2: 97 | AN2: 98 | AO2: 99 | AP2: 100 | AQ2: 101 | AR2: 114 | AS2: 128 | AT2: 129
A3: B | D3: Temperature(K) | E3: Wavelength(Å) | F3: Photon Indensity(nA) | G3: Energy(eV) | H3: Corrected PI(nA) | J3: Formula | K3: =ROUND(K2,0) -> 15 | L3: =ROUND(L2,0) -> 18 | M3: 27 | N3: 28 | O3: 29 | P3: 30 | Q3: 31 | R3: 32 | S3: 36 | T3: 38 | U3: 40 | V3: 41 | W3: 42 | X3: 43 | Y3: 44 | Z3: 55 | AA3: 56 | AB3: 57 | AC3: 58 | AD3: 69 | AE3: 70 | AF3: 71 | AG3: 72 | AH3: 83 | AI3: 84 | AJ3: 85 | AK3: 86 | AL3: 87 | AM3: 97 | AN3: 98 | AO3: 99 | AP3: 100 | AQ3: 101 | AR3: 114 | AS3: 128 | AT3: 129
A4: C | J4: Range | K4: 6598 | L4: 7215 | M4: 8812 | N4: 8967 | O4: 9123 | P4: 9281 | Q4: 9433 | R4: 9575 | S4: 10147 | T4: 10422 | U4: 10682 | V4: 10828 | W4: 10959 | X4: 11088 | Y4: 11216 | Z4: 12523 | AA4: 12637 | AB4: 12749 | AC4: 12861 | AD4: 14019 | AE4: 14115 | AF4: 14215 | AG4: 14316 | AH4: 15361 | AI4: 15454 | AJ4: 15542 | AK4: 15635 | AL4: 15712 | AM4: 16599 | AN4: 16680 | AO4: 16764 | AP4: 16849 | AQ4: 16936 | AR4: 17983 | AS4: 19045 | AT4: 19115
A5: D | K5: 6610 | L5: 7226 | M5: 8826 | N5: 8987 | O5: 9145 | P5: 9296 | Q5: 9445 | R5: 9590 | S5: 10161 | T5: 10435 | U5: 10713 | V5: 10850 | W5: 10977 | X5: 11108 | Y5: 11235 | Z5: 12546 | AA5: 12657 | AB5: 12769 | AC5: 12878 | AD5: 14033 | AE5: 14137 | AF5: 14237 | AG5: 14337 | AH5: 15381 | AI5: 15474 | AJ5: 15566 | AK5: 15653 | AL5: 15740 | AM5: 16615 | AN5: 16700 | AO5: 16782 | AP5: 16873 | AQ5: 16955 | AR5: 18000 | AS5: 19067 | AT5: 19142
A6: E | J6: Background Deduction
A7: F | D7: 227 | E7: 950 | F7: 7.15 | G7: 13.0509671 | H7: 52.31359385 | K7: 0 | L7: 8.142434283 | M7: 0 | N7: 0 | O7: 0.2148581119 | P7: 0 | Q7: 0.08410815768 | R7: 371.6334239 | S7: 0.1166044913 | T7: 0.01223391384 | U7: 0.2538537123 | V7: 4.486023283 | W7: 59.12459406 | X7: 208.2353591 | Y7: 7.378579287 | Z7: 8.572150507 | AA7: 154.6485226 | AB7: 195.2238271 | AC7: 9.196080113 | AD7: 0.9978285979 | AE7: 135.5785271 | AF7: 240.6881094 | AG7: 12.85019725 | AH7: 1.15304638 | AI7: 1.446660312 | AJ7: 11.31637031 | AK7: 1.49100825 | AL7: 0.1758625115 | AM7: 0.1731863429 | AN7: 0.9928585704 | AO7: 0.1101052246 | AP7: 165.903341 | AQ7: 12.56652338 | AR7: 0.01376315307 | AS7: 0 | AT7: 0
A8: H | D8: 247 | E8: 950 | F8: 4.16 | G8: 13.0509671 | H8: 30.43700006 | K8: 0.04008279389 | L8: 8.504123255 | M8: 0.04271117382 | N8: 0.3002924067 | O8: 0.01971284946 | P8: 0 | Q8: 0.1537602258 | R8: 326.3317667 | S8: 0.2299832437 | T8: 0.1918717347 | U8: 0 | V8: 5.200906781 | W8: 54.86874518 | X8: 203.1750826 | Y8: 5.815290589 | Z8: 8.055984478 | AA8: 147.1215952 | AB8: 191.4577649 | AC8: 7.832572184 | AD8: 0.9626441484 | AE8: 127.4126883 | AF8: 234.9429966 | AG8: 13.84893384 | AH8: 1.481092089 | AI8: 1.142688173 | AJ8: 11.25275156 | AK8: 0.9908992326 | AL8: 0.3239478261 | AM8: 0.1491605609 | AN8: 0.8239971073 | AO8: 0.2352400035 | AP8: 160.0190555 | AQ8: 11.75542923 | AR8: 0 | AS8: 0 | AT8: 0.006570949819
A9: J | D9: 267 | E9: 950 | F9: 3.56 | G9: 13.0509671 | H9: 26.04704813 | K9: 0.03839206636 | L9: 8.776426369 | M9: 0 | N9: 0.3447607559 | O9: 0.6718611612 | P9: 0 | Q9: 0 | R9: 314.868693 | S9: 0 | T9: 0.1904246491 | U9: 0.1105691511 | V9: 4.823579217 | W9: 52.38674238 | X9: 196.4422216 | Y9: 6.687897959 | Z9: 7.9149084 | AA9: 141.4693896 | AB9: 180.6638502 | AC9: 7.842731315 | AD9: 0.6065946484 | AE9: 122.9075934 | AF9: 221.3732617 | AG9: 13.34968931 | AH9: 1.690786602 | AI9: 1.735321399 | AJ9: 13.09169463 | AK9: 0.6526651281 | AL9: 0 | AM9: 0.01919603318 | AN9: 0.7570915485 | AO9: 0.1673894093 | AP9: 153.913794 | AQ9: 12.7308092 | AR9: 0.4545620657 | AS9: 0.1627823613 | AT9: 0.1996387451
A10: K | D10: 277 | E10: 950 | F10: 3.3 | G10: 13.0509671 | H10: 24.14473562 | K10: 0.1656675833 | L10: 9.714747085 | M10: 0.1449591354 | N10: 0.4729809503 | O10: 1.442136313 | P10: 0.5351062941 | Q10: 0.5715531624 | R10: 290.1849956 | S10: 0.01656675833 | T10: 0.05467030249 | U10: 1.628512344 | V10: 4.699989338 | W10: 47.92597517 | X10: 182.5880419 | Y10: 6.577003057 | Z10: 9.575586315 | AA10: 122.5269163 | AB10: 169.0223519 | AC10: 8.641221145 | AD10: 1.3916077 | AE10: 114.1747851 | AF10: 207.4696563 | AG10: 12.89225133 | AH10: 0.853188054 | AI10: 1.263215323 | AJ10: 14.74441491 | AK10: 1.198604965 | AL10: 0.3959455241 | AM10: 0.4936893983 | AN10: 0.6245667891 | AO10: 1.006430569 | AP10: 136.6136309 | AQ10: 11.55531394 | AR10: 0.5616131074 | AS10: 0.1341907425 | AT10: 0.4091989308
A11: L | D11: 287 | E11: 950 | F11: 3.18 | G11: 13.0509671 | H11: 23.26674524 | K11: 0.3438383804 | L11: 11.53233928 | M11: 0.06876767609 | N11: 2.725778761 | O11: 5.198836312 | P11: 1.291113119 | Q11: 1.132947464 | R11: 277.3211266 | S11: 0 | T11: 0 | U11: 0 | V11: 4.754425206 | W11: 45.03423188 | X11: 189.0156941 | Y11: 7.590232248 | Z11: 11.38276958 | AA11: 118.7746705 | AB11: 167.881668 | AC11: 11.44466049 | AD11: 3.640388853 | AE11: 101.824298 | AF11: 198.587295 | AG11: 13.9271736 | AH11: 2.032084828 | AI11: 2.055293919 | AJ11: 20.88818161 | AK11: 2.162743413 | AL11: 0.8355272645 | AM11: 0.9085929203 | AN11: 1.1888212 | AO11: 2.24612422 | AP11: 126.0167664 | AQ11: 9.515727179 | AR11: 1.160454534 | AS11: 0.440113127 | AT11: 1.751856548
A12: M | D12: 302 | E12: 950 | F12: 3.84 | G12: 13.0509671 | H12: 28.09569236 | K12: 0.3559264485 | L12: 14.6698645 | M12: 0.0249148514 | N12: 2.405350939 | O12: 8.01048065 | P12: 4.937411694 | Q12: 2.257285536 | R12: 258.0537937 | S12: 0 | T12: 0 | U12: 0.3502316253 | V12: 6.615960825 | W12: 36.17351681 | X12: 158.4121844 | Y12: 9.738147631 | Z12: 11.88651967 | AA12: 92.3173548 | AB12: 136.6800273 | AC12: 11.99614502 | AD12: 4.114509745 | AE12: 77.19973483 | AF12: 158.4427941 | AG12: 11.71852239 | AH12: 2.197489893 | AI12: 2.170439483 | AJ12: 23.36657134 | AK12: 2.539179284 | AL12: 1.284182626 | AM12: 1.212285484 | AN12: 1.790310036 | AO12: 4.283930734 | AP12: 94.44508311 | AQ12: 7.268018079 | AR12: 1.534754846 | AS12: 0.8001226562 | AT12: 1.880715354
A13: N | D13: 312 | E13: 950 | F13: 3.64 | G13: 13.0509671 | H13: 26.63237505 | K13: 0.2613360614 | L13: 17.44793692 | M13: 0.2140252227 | N13: 3.207374477 | O13: 10.22064309 | P13: 7.523174318 | Q13: 3.226899585 | R13: 250.3974951 | S13: 0.5932628979 | T13: 0 | U13: 0.006007725548 | V13: 4.728080007 | W13: 32.30203834 | X13: 142.7510687 | Y13: 8.801317928 | Z13: 12.61472172 | AA13: 82.08205224 | AB13: 120.7605403 | AC13: 12.761911 | AD13: 3.833679866 | AE13: 69.28860068 | AF13: 138.2092282 | AG13: 9.914249086 | AH13: 3.093978657 | AI13: 3.374088861 | AJ13: 26.02096128 | AK13: 3.206623511 | AL13: 1.115935021 | AM13: 0.9056646264 | AN13: 1.880418097 | AO13: 5.227472193 | AP13: 77.33069229 | AQ13: 7.321915512 | AR13: 1.668645771 | AS13: 1.100915707 | AT13: 2.314476268
A14: O | D14: 327 | E14: 950 | F14: 3.4 | G14: 13.0509671 | H14: 24.87639428 | K14: 0.241192511 | L14: 23.31206016 | M14: 0 | N14: 4.131627713 | O14: 14.42733203 | P14: 13.72706978 | Q14: 4.552106657 | R14: 228.5427678 | S14: 0 | T14: 0 | U14: 1.117525301 | V14: 5.93333577 | W14: 29.93118664 | X14: 124.6772328 | Y14: 10.66070899 | Z14: 12.67868633 | AA14: 75.44903731 | AB14: 106.2091222 | AC14: 10.9919467 | AD14: 5.237897364 | AE14: 59.27064765 | AF14: 117.6914937 | AG14: 10.89707765 | AH14: 3.322024851 | AI14: 2.216559176 | AJ14: 26.75226934 | AK14: 3.130678793 | AL14: 2.470615288 | AM14: 1.519512819 | AN14: 1.840298859 | AO14: 7.093471748 | AP14: 65.765158 | AQ14: 6.061971776 | AR14: 2.011545542 | AS14: 1.123153126 | AT14: 2.053352244
A15: P | D15: 352 | E15: 950 | F15: 3.16 | G15: 13.0509671 | H15: 23.1204135 | K15: 0.1185099912 | L15: 25.39746964 | M15: 0.08217846102 | N15: 7.313017995 | O15: 16.62427015 | P15: 17.43394425 | Q15: 5.225685085 | R15: 217.7244797 | S15: 0 | T15: 0.02249094723 | U15: 1.008632479 | V15: 6.786210808 | W15: 29.56694524 | X15: 96.34343259 | Y15: 7.837230072 | Z15: 14.29040185 | AA15: 61.58453869 | AB15: 84.82893265 | AC15: 11.49806425 | AD15: 4.78797665 | AE15: 48.9506816 | AF15: 95.50434725 | AG15: 9.565572863 | AH15: 2.171241444 | AI15: 3.518103168 | AJ15: 26.72962574 | AK15: 3.591631265 | AL15: 1.167799183 | AM15: 1.001712188 | AN15: 1.576096379 | AO15: 7.454883969 | AP15: 55.81647576 | AQ15: 5.415128063 | AR15: 2.446323029 | AS15: 1.693741333 | AT15: 0.9359694192
A16: Q | D16: 377 | E16: 950 | F16: 2.99 | G16: 13.0509671 | H16: 21.87659379 | K16: 0 | L16: 22.97432611 | M16: 0.1234195792 | N16: 6.55952208 | O16: 11.97078496 | P16: 13.00385255 | Q16: 4.491558464 | R16: 211.3674571 | S16: 0 | T16: 0 | U16: 2.510445663 | V16: 6.601576159 | W16: 28.92223561 | X16: 89.64009748 | Y16: 9.352461446 | Z16: 14.5470544 | AA16: 65.47454388 | AB16: 79.71807754 | AC16: 11.48624884 | AD16: 5.640731879 | AE16: 51.24198085 | AF16: 92.9139161 | AG16: 8.211516003 | AH16: 3.520657774 | AI16: 3.426493206 | AJ16: 28.66076895 | AK16: 2.682318855 | AL16: 1.397841012 | AM16: 0.8749076837 | AN16: 2.37057014 | AO16: 6.435188281 | AP16: 54.05320459 | AQ16: 4.251118839 | AR16: 1.621824693 | AS16: 1.129060595 | AT16: 0.5174480135
A17: R | D17: 402 | E17: 950 | F17: 2.78 | G17: 13.0509671 | H17: 20.34011061 | K17: 0 | L17: 17.50629614 | M17: 0.1327426409 | N17: 5.947853593 | O17: 8.858358905 | P17: 7.124838343 | Q17: 2.226143253 | R17: 214.0892979 | S17: 0.1720737938 | T17: 0 | U17: 0.485739738 | V17: 7.232999013 | W17: 31.89559842 | X17: 100.224627 | Y17: 7.50241741 | Z17: 15.51220669 | AA17: 83.49512115 | AB17: 91.3298868 | AC17: 8.823944147 | AD17: 6.002917207 | AE17: 63.94360506 | AF17: 107.9551651 | AG17: 8.873108088 | AH17: 3.308733235 | AI17: 2.917388264 | AJ17: 29.30170889 | AK17: 2.088484217 | AL17: 0.5231043332 | AM17: 1.00982735 | AN17: 2.31168851 | AO17: 4.24776451 | AP17: 68.65744373 | AQ17: 6.430643494 | AR17: 2.983267945 | AS17: 0.7413922316 | AT17: 0.3874118558
A18: S | D18: 427 | E18: 950 | F18: 2.61 | G18: 13.0509671 | H18: 19.0962909 | K18: 0 | L18: 12.42754424 | M18: 0.1466253324 | N18: 3.209000131 | O18: 2.059038596 | P18: 1.824438064 | Q18: 0.5948799198 | R18: 224.6237252 | S18: 0.3037239027 | T18: 0.1968968749 | U18: 0.7289373665 | V18: 6.613849813 | W18: 35.08744203 | X18: 117.5715227 | Y18: 6.168737197 | Z18: 10.55492928 | AA18: 93.59513893 | AB18: 109.961668 | AC18: 7.482081245 | AD18: 4.393523352 | AE18: 74.17566099 | AF18: 135.2880522 | AG18: 7.911484004 | AH18: 1.236889411 | AI18: 1.987820577 | AJ18: 19.6111382 | AK18: 1.496625714 | AL18: 0.2398371508 | AM18: 0.657719348 | AN18: 1.489294447 | AO18: 1.350000381 | AP18: 86.58749537 | AQ18: 6.116371007 | AR18: 1.426455019 | AS18: 0.00837859042 | AT18: 0.1508146276
A19: T | D19: 453 | E19: 950 | F19: 2.44 | G19: 13.0509671 | H19: 17.85247119 | K19: 0 | L19: 10.19690765 | M19: 0 | N19: 2.055737809 | O19: 1.625545265 | P19: 2.231623823 | Q19: 0.4167490272 | R19: 212.3425917 | S19: 0.240863013 | T19: 0 | U19: 0.004481172335 | V19: 3.999446309 | W19: 31.42086012 | X19: 108.828631 | Y19: 5.467030249 | Z19: 9.054208704 | AA19: 83.72958479 | AB19: 100.9081589 | AC19: 6.728480261 | AD19: 3.478510025 | AE19: 65.56179185 | AF19: 116.6572391 | AG19: 10.21035117 | AH19: 0.9656926383 | AI19: 1.170706273 | AJ19: 18.06472598 | AK19: 1.850724174 | AL19: 0 | AM19: 0.574710352 | AN19: 1.103488688 | AO19: 1.048594326 | AP19: 78.92464776 | AQ19: 6.867396604 | AR19: 0.9477679489 | AS19: 0.2330209614 | AT19: 0.1366757562
A20: U
A21: V
A22: W
A23: X
A24: Y
A25: Z
A26: AA
A27: AB
A28: AC
A29: AD
A30: AE
A31: AF
A32: AG
A33: AH
A34: AI
A35: AJ
A36: AK
A37: AL
A38: AM
A39: AN
A40: AO
A41: AP
A42: AQ
A43: AR
A44: AS
A45: AT
A46: AU
A47: AV
A48: AW
A49: AX
A50: AY
A51: AZ
A52: BA
A53: BB
A54: BC
A55: BD
A56: BE
A57: BF
A58: BG
A59: BH
A60: BI
A61: BJ
A62: BK
A63: BL
A64: BM
A65: BN
A66: BO
A67: BP
A68: BQ
A69: BR
A70: BS
A71: BT
A72: BU
A73: BV
A74: BW
A75: BX
A76: BY
A77: BZ
A78: CA
A79: CB
A80: CC
A81: CD
A82: CE
A83: CF
A84: CG
A85: CH
A86: CI
A87: CJ
A88: CK
A89: CL
A90: CM
A91: CN
A92: CO
A93: CP
A94: CQ
A95: CR
A96: CS
A97: CT
A98: CU
A99: CV
A100: CW
A101: CX
A102: CY
A103: CZ
A104: DA
A105: DB
A106: DC
A107: DD
A108: DE
A109: DF
A110: DG
A111: DH
A112: DI
A113: DJ
A114: DK
A115: DL
A116: DM
A117: DN
A118: DO
A119: DP
A120: DQ
A121: DR
A122: DS
A123: DT
A124: DU
A125: DV
A126: DW
A127: DX
A128: DY
A129: DZ
A130: EA
A131: EB
A132: EC
A133: ED
A134: EE
A135: EF
A136: EG
A137: EH
A138: EI
A139: EJ
A140: EK
A141: EL
A142: EM
A143: EN
A144: EO
A145: EP
A146: EQ
A147: ER
A148: ES
A149: ET
A150: EU
A151: EV
A152: EW
A153: EX
A154: EY

Sheet Comparative Graph
A1: 15 | C1: mass | D1: 100 | E1: <= choose m/z here
A2: 18 | C2: No. | D2: T(℃) | E2: wavelength(A)
A3: 27 | E3: 1127 | F3: 1180 | G3: 1240 | H3: 1305 | I3: 745 | J3: 950
A4: 28 | C4: 1 | D4: 227 | E4: =HLOOKUP($D$1,'11eV'!$G$2:$AY$20,'Comparative Graph'!C4+5,FALSE) -> 1323.550491 | F4: =HLOOKUP($D$1,'10.5eV'!$G$2:$AY$20,'Comparative Graph'!C4+5,FALSE) -> 428.1662683 | G4: =HLOOKUP($D$1,'10eV'!$G$2:$AY$20,'Comparative Graph'!C4+5,FALSE) -> 5.866680176 | H4: =HLOOKUP($D$1,'9.5eV'!$G$2:$AY$20,'Comparative Graph'!C4+5,FALSE) -> 0.1172948212 | I4: =HLOOKUP($D$1,'16.6eV'!$K$2:$AT$19,'Comparative Graph'!C4+5,FALSE) -> 91.60057833 | J4: =HLOOKUP($D$1,'13eV'!$K$2:$AT$19,'Comparative Graph'!C4+5,FALSE) -> 165.903341
A5: 29 | C5: 2 | D5: 247 | E5: =HLOOKUP($D$1,'11eV'!$G$2:$AY$20,'Comparative Graph'!C5+5,FALSE) -> 1103.383055 | F5: =HLOOKUP($D$1,'10.5eV'!$G$2:$AY$20,'Comparative Graph'!C5+5,FALSE) -> 357.9544152 | G5: =HLOOKUP($D$1,'10eV'!$G$2:$AY$20,'Comparative Graph'!C5+5,FALSE) -> 4.592533108 | H5: =HLOOKUP($D$1,'9.5eV'!$G$2:$AY$20,'Comparative Graph'!C5+5,FALSE) -> 0.05381025238 | I5: =HLOOKUP($D$1,'16.6eV'!$K$2:$AT$19,'Comparative Graph'!C5+5,FALSE) -> 91.14688714 | J5: =HLOOKUP($D$1,'13eV'!$K$2:$AT$19,'Comparative Graph'!C5+5,FALSE) -> 160.0190555
A6: 30 | C6: 3 | D6: 267 | E6: =HLOOKUP($D$1,'11eV'!$G$2:$AY$20,'Comparative Graph'!C6+5,FALSE) -> 966.9852088 | F6: =HLOOKUP($D$1,'10.5eV'!$G$2:$AY$20,'Comparative Graph'!C6+5,FALSE) -> 308.2948819 | G6: =HLOOKUP($D$1,'10eV'!$G$2:$AY$20,'Comparative Graph'!C6+5,FALSE) -> 4.422647642 | H6: =HLOOKUP($D$1,'9.5eV'!$G$2:$AY$20,'Comparative Graph'!C6+5,FALSE) -> 0.08019662418 | I6: =HLOOKUP($D$1,'16.6eV'!$K$2:$AT$19,'Comparative Graph'!C6+5,FALSE) -> 99.38043538 | J6: =HLOOKUP($D$1,'13eV'!$K$2:$AT$19,'Comparative Graph'!C6+5,FALSE) -> 153.913794
A7: 31 | C7: 4 | D7: 277 | E7: =HLOOKUP($D$1,'11eV'!$G$2:$AY$20,'Comparative Graph'!C7+5,FALSE) -> 866.7653402 | F7: =HLOOKUP($D$1,'10.5eV'!$G$2:$AY$20,'Comparative Graph'!C7+5,FALSE) -> 284.341746 | G7: =HLOOKUP($D$1,'10eV'!$G$2:$AY$20,'Comparative Graph'!C7+5,FALSE) -> 5.764581698 | H7: =HLOOKUP($D$1,'9.5eV'!$G$2:$AY$20,'Comparative Graph'!C7+5,FALSE) -> 0.6163703366 | I7: =HLOOKUP($D$1,'16.6eV'!$K$2:$AT$19,'Comparative Graph'!C7+5,FALSE) -> 86.11167742 | J7: =HLOOKUP($D$1,'13eV'!$K$2:$AT$19,'Comparative Graph'!C7+5,FALSE) -> 136.6136309
A8: 32 | C8: 5 | D8: 287 | E8: =HLOOKUP($D$1,'11eV'!$G$2:$AY$20,'Comparative Graph'!C8+5,FALSE) -> 766.2976685 | F8: =HLOOKUP($D$1,'10.5eV'!$G$2:$AY$20,'Comparative Graph'!C8+5,FALSE) -> 243.3190801 | G8: =HLOOKUP($D$1,'10eV'!$G$2:$AY$20,'Comparative Graph'!C8+5,FALSE) -> 8.062219314 | H8: =HLOOKUP($D$1,'9.5eV'!$G$2:$AY$20,'Comparative Graph'!C8+5,FALSE) -> 1.32281205 | I8: =HLOOKUP($D$1,'16.6eV'!$K$2:$AT$19,'Comparative Graph'!C8+5,FALSE) -> 73.91746668 | J8: =HLOOKUP($D$1,'13eV'!$K$2:$AT$19,'Comparative Graph'!C8+5,FALSE) -> 126.0167664
A9: 36 | C9: 6 | D9: 302 | E9: =HLOOKUP($D$1,'11eV'!$G$2:$AY$20,'Comparative Graph'!C9+5,FALSE) -> 541.7643181 | F9: =HLOOKUP($D$1,'10.5eV'!$G$2:$AY$20,'Comparative Graph'!C9+5,FALSE) -> 184.0278278 | G9: =HLOOKUP($D$1,'10eV'!$G$2:$AY$20,'Comparative Graph'!C9+5,FALSE) -> 4.951713423 | H9: =HLOOKUP($D$1,'9.5eV'!$G$2:$AY$20,'Comparative Graph'!C9+5,FALSE) -> 2.366841928 | I9: =HLOOKUP($D$1,'16.6eV'!$K$2:$AT$19,'Comparative Graph'!C9+5,FALSE) -> 48.07984961 | J9: =HLOOKUP($D$1,'13eV'!$K$2:$AT$19,'Comparative Graph'!C9+5,FALSE) -> 94.44508311
A10: 38 | C10: 7 | D10: 312 | E10: =HLOOKUP($D$1,'11eV'!$G$2:$AY$20,'Comparative Graph'!C10+5,FALSE) -> 499.5374289 | F10: =HLOOKUP($D$1,'10.5eV'!$G$2:$AY$20,'Comparative Graph'!C10+5,FALSE) -> 176.8747755 | G10: =HLOOKUP($D$1,'10eV'!$G$2:$AY$20,'Comparative Graph'!C10+5,FALSE) -> 14.83127588 | H10: =HLOOKUP($D$1,'9.5eV'!$G$2:$AY$20,'Comparative Graph'!C10+5,FALSE) -> 3.708882825 | I10: =HLOOKUP($D$1,'16.6eV'!$K$2:$AT$19,'Comparative Graph'!C10+5,FALSE) -> 41.27081039 | J10: =HLOOKUP($D$1,'13eV'!$K$2:$AT$19,'Comparative Graph'!C10+5,FALSE) -> 77.33069229
A11: 40 | C11: 8 | D11: 327 | E11: =HLOOKUP($D$1,'11eV'!$G$2:$AY$20,'Comparative Graph'!C11+5,FALSE) -> 416.3668324 | F11: =HLOOKUP($D$1,'10.5eV'!$G$2:$AY$20,'Comparative Graph'!C11+5,FALSE) -> 146.1058102 | G11: =HLOOKUP($D$1,'10eV'!$G$2:$AY$20,'Comparative Graph'!C11+5,FALSE) -> 16.00269627 | H11: =HLOOKUP($D$1,'9.5eV'!$G$2:$AY$20,'Comparative Graph'!C11+5,FALSE) -> 3.877492936 | I11: =HLOOKUP($D$1,'16.6eV'!$K$2:$AT$19,'Comparative Graph'!C11+5,FALSE) -> 38.13515476 | J11: =HLOOKUP($D$1,'13eV'!$K$2:$AT$19,'Comparative Graph'!C11+5,FALSE) -> 65.765158
A12: 41 | C12: 9 | D12: 352 | E12: =HLOOKUP($D$1,'11eV'!$G$2:$AY$20,'Comparative Graph'!C12+5,FALSE) -> 373.7345009 | F12: =HLOOKUP($D$1,'10.5eV'!$G$2:$AY$20,'Comparative Graph'!C12+5,FALSE) -> 129.940599 | G12: =HLOOKUP($D$1,'10eV'!$G$2:$AY$20,'Comparative Graph'!C12+5,FALSE) -> 18.9826645 | H12: =HLOOKUP($D$1,'9.5eV'!$G$2:$AY$20,'Comparative Graph'!C12+5,FALSE) -> 4.656041422 | I12: =HLOOKUP($D$1,'16.6eV'!$K$2:$AT$19,'Comparative Graph'!C12+5,FALSE) -> 30.23195377 | J12: =HLOOKUP($D$1,'13eV'!$K$2:$AT$19,'Comparative Graph'!C12+5,FALSE) -> 55.81647576
A13: 42 | C13: 10 | D13: 377 | E13: =HLOOKUP($D$1,'11eV'!$G$2:$AY$20,'Comparative Graph'!C13+5,FALSE) -> 365.9091857 | F13: =HLOOKUP($D$1,'10.5eV'!$G$2:$AY$20,'Comparative Graph'!C13+5,FALSE) -> 130.4770187 | G13: =HLOOKUP($D$1,'10eV'!$G$2:$AY$20,'Comparative Graph'!C13+5,FALSE) -> 11.16970613 | H13: =HLOOKUP($D$1,'9.5eV'!$G$2:$AY$20,'Comparative Graph'!C13+5,FALSE) -> 3.489298782 | I13: =HLOOKUP($D$1,'16.6eV'!$K$2:$AT$19,'Comparative Graph'!C13+5,FALSE) -> 28.82020282 | J13: =HLOOKUP($D$1,'13eV'!$K$2:$AT$19,'Comparative Graph'!C13+5,FALSE) -> 54.05320459
A14: 43 | C14: 11 | D14: 402 | E14: =HLOOKUP($D$1,'11eV'!$G$2:$AY$20,'Comparative Graph'!C14+5,FALSE) -> 428.7389856 | F14: =HLOOKUP($D$1,'10.5eV'!$G$2:$AY$20,'Comparative Graph'!C14+5,FALSE) -> 155.0633955 | G14: =HLOOKUP($D$1,'10eV'!$G$2:$AY$20,'Comparative Graph'!C14+5,FALSE) -> 7.133198787 | H14: =HLOOKUP($D$1,'9.5eV'!$G$2:$AY$20,'Comparative Graph'!C14+5,FALSE) -> 1.436906812 | I14: =HLOOKUP($D$1,'16.6eV'!$K$2:$AT$19,'Comparative Graph'!C14+5,FALSE) -> 37.30580372 | J14: =HLOOKUP($D$1,'13eV'!$K$2:$AT$19,'Comparative Graph'!C14+5,FALSE) -> 68.65744373
A15: 44 | C15: 12 | D15: 427 | E15: =HLOOKUP($D$1,'11eV'!$G$2:$AY$20,'Comparative Graph'!C15+5,FALSE) -> 650.5076753 | F15: =HLOOKUP($D$1,'10.5eV'!$G$2:$AY$20,'Comparative Graph'!C15+5,FALSE) -> 219.4183579 | G15: =HLOOKUP($D$1,'10eV'!$G$2:$AY$20,'Comparative Graph'!C15+5,FALSE) -> 4.487777721 | H15: =HLOOKUP($D$1,'9.5eV'!$G$2:$AY$20,'Comparative Graph'!C15+5,FALSE) -> 0.5130530998 | I15: =HLOOKUP($D$1,'16.6eV'!$K$2:$AT$19,'Comparative Graph'!C15+5,FALSE) -> 46.52892298 | J15: =HLOOKUP($D$1,'13eV'!$K$2:$AT$19,'Comparative Graph'!C15+5,FALSE) -> 86.58749537
A16: 45 | C16: 13 | D16: 453 | E16: =HLOOKUP($D$1,'11eV'!$G$2:$AY$20,'Comparative Graph'!C16+5,FALSE) -> 681.8512381 | F16: =HLOOKUP($D$1,'10.5eV'!$G$2:$AY$20,'Comparative Graph'!C16+5,FALSE) -> 221.0882855 | G16: =HLOOKUP($D$1,'10eV'!$G$2:$AY$20,'Comparative Graph'!C16+5,FALSE) -> 2.956276133 | H16: =HLOOKUP($D$1,'9.5eV'!$G$2:$AY$20,'Comparative Graph'!C16+5,FALSE) -> 0.1480102155 | I16: =HLOOKUP($D$1,'16.6eV'!$K$2:$AT$19,'Comparative Graph'!C16+5,FALSE) -> 44.37396308 | J16: =HLOOKUP($D$1,'13eV'!$K$2:$AT$19,'Comparative Graph'!C16+5,FALSE) -> 78.92464776
A17: 55
A18: 56 | B18: Coefficient of Normalization | C18: Ar | D18: T (K) | E18: 11 eV | F18: 10.5 eV | G18: 10 eV | H18: 9.5 eV | I18: 16.6 eV | J18: 13 eV
A19: 57 | B19: =C19/$C$19 -> 1 | C19: 1512 | D19: =D4+273.15 -> 500.15 | E19: =E4/B19 -> 1323.550491 | F19: =F4/B19 -> 428.1662683 | G19: =G4/B19 -> 5.866680176 | H19: =H4/B19 -> 0.1172948212 | I19: =I4/B19 -> 91.60057833 | J19: =J4/B19 -> 165.903341
A20: 58 | B20: =C20/$C$19 -> 0.9616402116 | C20: 1454 | D20: =D5+273.15 -> 520.15 | E20: =E5/B20 -> 1147.39696 | F20: =F5/B20 -> 372.2332021 | G20: =G5/B20 -> 4.775729064 | H20: =H5/B20 -> 0.05595674112 | I20: =I5/B20 -> 94.78273271 | J20: =J5/B20 -> 166.402209
A21: 59 | B21: 0.9259259259 | C21: 1400 | D21: 540.15 | E21: 1044.344025 | F21: 332.9584725 | G21: 4.776459454 | H21: 0.08661235411 | I21: 107.3308702 | J21: 166.2268975
A22: 60 | B22: 0.9087301587 | C22: 1374 | D22: 550.15 | E22: 953.8203744 | F22: 312.9000873 | G22: 6.343557152 | H22: 0.6782765276 | I22: 94.76044851 | J22: 150.3346506
A23: 61 | B23: 0.8928571429 | C23: 1350 | D23: 560.15 | E23: 858.2533888 | F23: 272.5173698 | G23: 9.029685632 | H23: 1.481549496 | I23: 82.78756269 | J23: 141.1387784
A24: 69 | B24: 0.8697089947 | C24: 1315 | D24: 575.15 | E24: 622.9259688 | F24: 211.5970157 | G24: 5.693529046 | H24: 2.721418247 | I24: 55.28268639 | J24: 108.5938902
A25: 70 | B25: 0.8544973545 | C25: 1292 | D25: 585.15 | E25: 584.5979818 | F25: 206.9927713 | G25: 17.35672533 | H25: 4.34042634 | I25: 48.29834777 | J25: 90.49845724
A26: 71 | B26: 0.8333333333 | C26: 1260 | D26: 600.15 | E26: 499.6401989 | F26: 175.3269722 | G26: 19.20323552 | H26: 4.652991523 | I26: 45.76218571 | J26: 78.9181896
A27: 72 | B27: 0.7996031746 | C27: 1209 | D27: 625.15 | E27: 467.3999713 | F27: 162.506357 | G27: 23.74010648 | H27: 5.822940141 | I27: 37.80869653 | J27: 69.80522031
A28: 73 | B28: 0.7691798942 | C28: 1163 | D28: 650.15 | E28: 475.7134039 | F28: 169.6313433 | G28: 14.52157839 | H28: 4.536388442 | I28: 37.46874176 | J28: 70.27381371
A29: 74 | B29: 0.7407407407 | C29: 1120 | D29: 675.15 | E29: 578.7976306 | F29: 209.3355839 | G29: 9.629818363 | H29: 1.939824197 | I29: 50.36283503 | J29: 92.68754904
A30: 83 | B30: 0.7142857143 | C30: 1080 | D30: 700.15 | E30: 910.7107454 | F30: 307.1857011 | G30: 6.282888809 | H30: 0.7182743397 | I30: 65.14049217 | J30: 121.2224935
A31: 84 | B31: 0.6898148148 | C31: 1043 | D31: 726.15 | E31: 988.4554861 | F31: 320.5038233 | G31: 4.285608354 | H31: 0.2145651446 | I31: 64.32735587 | J31: 114.4142545
A32: 85
A33: 86
A34: 87
A35: 97
A36: 98
A37: 99
A38: 100
A39: 101
A40: 110
A41: 111
A42: 112
A43: 113
A44: 114
A45: 115
A46: 116
A47: 117
A48: 119
A49: 126
A50: 128
A51: 129
A52: 130
A53: 144
A54: 146
